Publisher Label,Publisher URI,"Supplier ID","Supplier","Invoice No.","Amount £","Purpose","Transaction Number","Payment Date","Organisational Unit","Cost Centre(T)","Internal Category Number"
"Wolverhampton City Council","http://opendatacommunities.org/id/metropolitan-district-council/wolverhampton","700044","Access To Business","561","17,250.00","TPP - Social Care Support Services","130229762","03/10/2018","Enterprise","Access to Business","R5501"
"Wolverhampton City Council","http://opendatacommunities.org/id/metropolitan-district-council/wolverhampton","700044","Access To Business","564","4,788.00","Training Expenses","130231058","17/10/2018","Local Economy","Universal Credit","R1650"
"Wolverhampton City Council","http://opendatacommunities.org/id/metropolitan-district-council/wolverhampton","700044","Access To Business","560","17,250.00","TPP - Social Care Support Services","130229761","03/10/2018","Enterprise","Access to Business","R5501"
"Wolverhampton City Council","http://opendatacommunities.org/id/metropolitan-district-council/wolverhampton","700220","THE Acme Facilities Group Ltd","IN311304","808.00","Equipment - Catering","130232477","31/10/2018","Catering","Education Catering - General Overheads","R4010"
"Wolverhampton City Council","http://opendatacommunities.org/id/metropolitan-district-council/wolverhampton","700264","Acorn Environmental Mgt Group Limited","11804","6,224.70","Grounds Maintenance - Contract","130230141","10/10/2018","Environmental Maintenance","Arbor Scheme","R2075"
"Wolverhampton City Council","http://opendatacommunities.org/id/metropolitan-district-council/wolverhampton","700264","Acorn Environmental Mgt Group Limited","11717","6,419.16","Grounds Maintenance - Contract","130229763","10/10/2018","Environmental Maintenance","Arbor Scheme","R2075"
"Wolverhampton City Council","http://opendatacommunities.org/id/metropolitan-district-council/wolverhampton","700264","Acorn Environmental Mgt Group Limited","11805","5,142.27","Grounds Maintenance - Contract","130230142","19/10/2018","Environmental Maintenance","Arbor Scheme","R2075"
"Wolverhampton City Council","http://opendatacommunities.org/id/metropolitan-district-council/wolverhampton","700341","Acs Business Supplies Limited","SINV00470290","27.88","Stationery","130228519","10/10/2018","Visitor Economy","Northicote Farm","R4308"
"Wolverhampton City Council","http://opendatacommunities.org/id/metropolitan-district-council/wolverhampton","700341","Acs Business Supplies Limited","SINV00471321","54.03","Stationery","130228985","10/10/2018","Customer Services","City Direct","R4308"
"Wolverhampton City Council","http://opendatacommunities.org/id/metropolitan-district-council/wolverhampton","700341","Acs Business Supplies Limited","SINV00471316","23.56","Stationery","130228980","10/10/2018","Visitor Economy","Research & Development - NPO ACE WAG","R4308"
"Wolverhampton City Council","http://opendatacommunities.org/id/metropolitan-district-council/wolverhampton","700341","Acs Business Supplies Limited","SINV00475425","225.82","Stationery","130231673","24/10/2018","Adult Education","Service Wide","R4308"
"Wolverhampton City Council","http://opendatacommunities.org/id/metropolitan-district-council/wolverhampton","700341","Acs Business Supplies Limited","SINV00475266","12.70","Stationery","130230567","24/10/2018","Strategic Director Place","Business Manager - Place","R4308"
"Wolverhampton City Council","http://opendatacommunities.org/id/metropolitan-district-council/wolverhampton","700341","Acs Business Supplies Limited","SINV00475266","7.80","Stationery","130230567","24/10/2018","Strategic Director Place","Business Manager - Place","R4308"
"Wolverhampton City Council","http://opendatacommunities.org/id/metropolitan-district-council/wolverhampton","700341","Acs Business Supplies Limited","SINV00475266","30.80","Stationery","130230567","24/10/2018","Strategic Director Place","Business Manager - Place","R4308"
"Wolverhampton City Council","http://opendatacommunities.org/id/metropolitan-district-council/wolverhampton","700341","Acs Business Supplies Limited","SINV00475426","18.20","Stationery","130230568","24/10/2018","Governance Services","Equalities","R4308"
"Wolverhampton City Council","http://opendatacommunities.org/id/metropolitan-district-council/wolverhampton","700341","Acs Business Supplies Limited","SINV00473860","27.27","Stationery","130230301","24/10/2018","Adults Assessment & Care Management East","Adult Services � East","R4308"
"Wolverhampton City Council","http://opendatacommunities.org/id/metropolitan-district-council/wolverhampton","700341","Acs Business Supplies Limited","SINV00476812","12.99","Stationery","130231241","31/10/2018","Customer Services","City Direct","R4308"
"Wolverhampton City Council","http://opendatacommunities.org/id/metropolitan-district-council/wolverhampton","700341","Acs Business Supplies Limited","SINV00476459","91.90","Stationery","130231063","31/10/2018","Public Service Reform","Local Government Elections","R4308"
"Wolverhampton City Council","http://opendatacommunities.org/id/metropolitan-district-council/wolverhampton","700341","Acs Business Supplies Limited","SINV00472654","60.16","Stationery","130229606","17/10/2018","Looked After Children","Adoption and Residence Team & Allowances","R4308"
"Wolverhampton City Council","http://opendatacommunities.org/id/metropolitan-district-council/wolverhampton","700341","Acs Business Supplies Limited","SINV00469237","17.94","Stationery","130228054","03/10/2018","Environmental Maintenance","Ground Maintenance West","R4308"
"Wolverhampton City Council","http://opendatacommunities.org/id/metropolitan-district-council/wolverhampton","700341","Acs Business Supplies Limited","SINV00469237","7.96","Stationery","130228054","03/10/2018","Environmental Maintenance","Ground Maintenance West","R4308"
"Wolverhampton City Council","http://opendatacommunities.org/id/metropolitan-district-council/wolverhampton","700341","Acs Business Supplies Limited","SINV00470765","173.60","Stationery","130228974","10/10/2018","Strategic Director People","Strategic Director People","R4308"
"Wolverhampton City Council","http://opendatacommunities.org/id/metropolitan-district-council/wolverhampton","700341","Acs Business Supplies Limited","SINV00470291","24.71","Stationery","130228520","10/10/2018","Child Protection","CIN/CP Social Work Unit - Area 5","R4308"
"Wolverhampton City Council","http://opendatacommunities.org/id/metropolitan-district-council/wolverhampton","700341","Acs Business Supplies Limited","SINV00471313","64.95","Stationery","130228977","10/10/2018","Customer Services","City Direct","R4308"
"Wolverhampton City Council","http://opendatacommunities.org/id/metropolitan-district-council/wolverhampton","700341","Acs Business Supplies Limited","SINV00474636","107.66","Stationery","130230566","26/10/2018","Older People Provider Services","ILS Stores","R4308"
"Wolverhampton City Council","http://opendatacommunities.org/id/metropolitan-district-council/wolverhampton","700341","Acs Business Supplies Limited","SINV00470766","27.15","Stationery","130228975","10/10/2018","Skills","IMPACT","R4308"
"Wolverhampton City Council","http://opendatacommunities.org/id/metropolitan-district-council/wolverhampton","700341","Acs Business Supplies Limited","SINV00472653","53.99","Stationery","130229605","17/10/2018","Safeguarding","Head of Service Quality and Safeguarding","R4308"
"Wolverhampton City Council","http://opendatacommunities.org/id/metropolitan-district-council/wolverhampton","700341","Acs Business Supplies Limited","SINV00474635","106.95","Stationery","130230309","24/10/2018","Strategic Director People","Strategic Director People","R4308"
"Wolverhampton City Council","http://opendatacommunities.org/id/metropolitan-district-council/wolverhampton","700341","Acs Business Supplies Limited","SINV00473867","43.48","Stationery","130230308","24/10/2018","Fleet Services","Fleet Management","R4308"
"Wolverhampton City Council","http://opendatacommunities.org/id/metropolitan-district-council/wolverhampton","700341","Acs Business Supplies Limited","SINV00473866","29.94","Stationery","130230307","24/10/2018","Fleet Services","Fleet Management","R4308"
"Wolverhampton City Council","http://opendatacommunities.org/id/metropolitan-district-council/wolverhampton","700341","Acs Business Supplies Limited","SINV00474637","63.00","Stationery","130230143","24/10/2018","Licensing","Private Hire Vehicles","R4308"
"Wolverhampton City Council","http://opendatacommunities.org/id/metropolitan-district-council/wolverhampton","700341","Acs Business Supplies Limited","SINV00476813","44.43","Stationery","130231242","31/10/2018","Child Protection","CIN/CP Social Work Unit - Area 3","R4308"
"Wolverhampton City Council","http://opendatacommunities.org/id/metropolitan-district-council/wolverhampton","700341","Acs Business Supplies Limited","SINV00476810","108.38","Stationery","130231239","31/10/2018","Strategic Director Place","Business Manager - Place","R4308"
"Wolverhampton City Council","http://opendatacommunities.org/id/metropolitan-district-council/wolverhampton","700341","Acs Business Supplies Limited","SINV00469648","64.78","Stationery","130228253","03/10/2018","Public Service Reform","Register Office","R4308"
"Wolverhampton City Council","http://opendatacommunities.org/id/metropolitan-district-council/wolverhampton","700341","Acs Business Supplies Limited","SINV00469647","129.90","Stationery","130228252","03/10/2018","Skills","IMPACT","R4308"
"Wolverhampton City Council","http://opendatacommunities.org/id/metropolitan-district-council/wolverhampton","700341","Acs Business Supplies Limited","SINV00471320","37.79","Stationery","130228984","10/10/2018","Central Corporate Budgets","Miscellaneous Corporate Costs","R4308"
"Wolverhampton City Council","http://opendatacommunities.org/id/metropolitan-district-council/wolverhampton","700341","Acs Business Supplies Limited","SINV00471315","57.07","Stationery","130228979","10/10/2018","Environmental Maintenance","Ground Maintenance Overheads","R4308"
"Wolverhampton City Council","http://opendatacommunities.org/id/metropolitan-district-council/wolverhampton","700341","Acs Business Supplies Limited","SCRN00053067","-23.64","Stationery","130207354","10/10/2018","Early Intervention","EIP Locality 4 - Bingley","R4308"
"Wolverhampton City Council","http://opendatacommunities.org/id/metropolitan-district-council/wolverhampton","700341","Acs Business Supplies Limited","SINV00471319","16.80","Stationery","130228983","10/10/2018","Strategic Director Place","Strategic Director Place","R4308"
"Wolverhampton City Council","http://opendatacommunities.org/id/metropolitan-district-council/wolverhampton","700341","Acs Business Supplies Limited","SINV00476809","41.53","Stationery","130231238","31/10/2018","Child Protection","CIN/CP Social Work Unit - Area 3","R4308"
"Wolverhampton City Council","http://opendatacommunities.org/id/metropolitan-district-council/wolverhampton","700341","Acs Business Supplies Limited","SINV00476811","51.32","Stationery","130231240","31/10/2018","Fleet Services","Fleet Management","R4308"
"Wolverhampton City Council","http://opendatacommunities.org/id/metropolitan-district-council/wolverhampton","700341","Acs Business Supplies Limited","SINV00473573","78.81","Stationery","130229917","24/10/2018","Strategic Director People","Strategic Director People","R4308"
"Wolverhampton City Council","http://opendatacommunities.org/id/metropolitan-district-council/wolverhampton","700341","Acs Business Supplies Limited","SINV00473864","108.85","Stationery","130230305","24/10/2018","Audit Services","Risk Management & Insurance","R4308"
"Wolverhampton City Council","http://opendatacommunities.org/id/metropolitan-district-council/wolverhampton","700341","Acs Business Supplies Limited","SINV00473861","29.82","Stationery","130230302","24/10/2018","Early Intervention","EIP Locality 2 � Bilston/Rocket Pool","R4308"
"Wolverhampton City Council","http://opendatacommunities.org/id/metropolitan-district-council/wolverhampton","700341","Acs Business Supplies Limited","SINV00473863","30.58","Stationery","130230304","24/10/2018","Fleet Services","Fleet Management","R4308"
"Wolverhampton City Council","http://opendatacommunities.org/id/metropolitan-district-council/wolverhampton","700341","Acs Business Supplies Limited","SINV00473859","63.00","Stationery","130230800","24/10/2018","Licensing","Private Hire Vehicles","R4308"
"Wolverhampton City Council","http://opendatacommunities.org/id/metropolitan-district-council/wolverhampton","700341","Acs Business Supplies Limited","SINV00469236","86.00","Stationery","130228053","03/10/2018","Bereavement Services","Cemeteries","R4308"
"Wolverhampton City Council","http://opendatacommunities.org/id/metropolitan-district-council/wolverhampton","700341","Acs Business Supplies Limited","SINV00469235","15.05","Stationery","130228052","03/10/2018","Strategic Director People","Strategic Director People","R4308"
"Wolverhampton City Council","http://opendatacommunities.org/id/metropolitan-district-council/wolverhampton","700341","Acs Business Supplies Limited","SINV00471318","16.35","Stationery","130228982","10/10/2018","Community Financial Support","Welfare Rights","R4308"
"Wolverhampton City Council","http://opendatacommunities.org/id/metropolitan-district-council/wolverhampton","700341","Acs Business Supplies Limited","SINV00471317","54.38","Stationery","130228981","10/10/2018","Safeguarding","Head of Service Quality and Safeguarding","R4308"
"Wolverhampton City Council","http://opendatacommunities.org/id/metropolitan-district-council/wolverhampton","700341","Acs Business Supplies Limited","SINV00471314","498.57","Stationery","130228978","10/10/2018","Adult Education","Service Wide","R4308"
"Wolverhampton City Council","http://opendatacommunities.org/id/metropolitan-district-council/wolverhampton","700341","Acs Business Supplies Limited","SINV00470767","29.70","Stationery","130228976","10/10/2018","Audit Services","Health & Safety","R4308"
"Wolverhampton City Council","http://opendatacommunities.org/id/metropolitan-district-council/wolverhampton","700341","Acs Business Supplies Limited","SINV00473574","67.49","Stationery","130229918","24/10/2018","Inclusion Support","Inclusion Support","R4308"
"Wolverhampton City Council","http://opendatacommunities.org/id/metropolitan-district-council/wolverhampton","700341","Acs Business Supplies Limited","SINV00473858","236.85","Stationery","130230300","24/10/2018","Legal Services","Legal Services","R4308"
"Wolverhampton City Council","http://opendatacommunities.org/id/metropolitan-district-council/wolverhampton","700341","Acs Business Supplies Limited","SINV00473865","31.98","Stationery","130230306","24/10/2018","Adults Assessment & Care Management East","Adult Services � East","R4308"
"Wolverhampton City Council","http://opendatacommunities.org/id/metropolitan-district-council/wolverhampton","700341","Acs Business Supplies Limited","SINV00474638","94.02","Stationery","130230144","24/10/2018","ICTS","Document Centre - General","R4308"
"Wolverhampton City Council","http://opendatacommunities.org/id/metropolitan-district-council/wolverhampton","700341","Acs Business Supplies Limited","SINV00476458","61.66","Stationery","130231062","31/10/2018","Transportation","Passenger Transport - General","R4308"
"Wolverhampton City Council","http://opendatacommunities.org/id/metropolitan-district-council/wolverhampton","700341","Acs Business Supplies Limited","SINV00476808","13.68","Stationery","130231237","31/10/2018","Early Intervention","EIP Locality 7 � Low Hill","R4308"
"Wolverhampton City Council","http://opendatacommunities.org/id/metropolitan-district-council/wolverhampton","700341","Acs Business Supplies Limited","SINV00476457","32.10","Stationery","130231061","31/10/2018","Safeguarding","Head of Service Quality and Safeguarding","R4308"
"Wolverhampton City Council","http://opendatacommunities.org/id/metropolitan-district-council/wolverhampton","700341","Acs Business Supplies Limited","SINV00472650","56.40","Stationery","130229602","17/10/2018","Cleaning","Cleaning of Buildings - General","R4308"
"Wolverhampton City Council","http://opendatacommunities.org/id/metropolitan-district-council/wolverhampton","700341","Acs Business Supplies Limited","SINV00472650","48.62","Stationery","130229602","17/10/2018","Catering","Education Catering - General Overheads","R4308"
"Wolverhampton City Council","http://opendatacommunities.org/id/metropolitan-district-council/wolverhampton","700604","P Kitterick","00041","935.00","TPP - Maintenance Contractor - General","190512893","03/10/2018","Transportation","Cycling Schemes - Bikeability","R5720"
"Wolverhampton City Council","http://opendatacommunities.org/id/metropolitan-district-council/wolverhampton","700604","P Kitterick","00042","1,320.00","TPP - Maintenance Contractor - General","190523703","31/10/2018","Transportation","Cycling Schemes - Bikeability","R5720"
"Wolverhampton City Council","http://opendatacommunities.org/id/metropolitan-district-council/wolverhampton","700663","Partisip8/P Sicilia","754","1,630.00","TPP - Maintenance Contractor - General","190512892","03/10/2018","Transportation","Cycling Schemes - Bikeability","R5720"
"Wolverhampton City Council","http://opendatacommunities.org/id/metropolitan-district-council/wolverhampton","700737","Adreeja Chatterjee","2496","650.00","Services - Professional Fees","130232730","31/10/2018","Legal Services","Centralised External Legal Costs","R4400"
"Wolverhampton City Council","http://opendatacommunities.org/id/metropolitan-district-council/wolverhampton","700761","R Millard","000050","192.50","Services - Professional Fees","190523704","31/10/2018","Transportation","Advisory Road Markings and Disabled Bays","R4400"
"Wolverhampton City Council","http://opendatacommunities.org/id/metropolitan-district-council/wolverhampton","700761","R Millard","000049","40.00","Services - Professional Fees","190512887","03/10/2018","Transportation","Advisory Road Markings and Disabled Bays","R4400"
"Wolverhampton City Council","http://opendatacommunities.org/id/metropolitan-district-council/wolverhampton","700762","R Millington","00043","735.00","TPP - Maintenance Contractor - General","190523700","31/10/2018","Transportation","Cycling Schemes - Bikeability","R5720"
"Wolverhampton City Council","http://opendatacommunities.org/id/metropolitan-district-council/wolverhampton","700770","Adt Fire And Security PLC","39718587-02","1,280.76","Fixtures and Fittings - R&M","130231384","26/10/2018","Maintenance Programme","Centralised R&M","R2502"
"Wolverhampton City Council","http://opendatacommunities.org/id/metropolitan-district-council/wolverhampton","700770","Adt Fire And Security PLC","39718594-02","166.49","Fixtures and Fittings - R&M","130231388","26/10/2018","Maintenance Programme","Centralised R&M","R2502"
"Wolverhampton City Council","http://opendatacommunities.org/id/metropolitan-district-council/wolverhampton","700770","Adt Fire And Security PLC","39718586-02","238.97","Fixtures and Fittings - R&M","130231383","26/10/2018","Maintenance Programme","Centralised R&M","R2502"
"Wolverhampton City Council","http://opendatacommunities.org/id/metropolitan-district-council/wolverhampton","700770","Adt Fire And Security PLC","39718588-02","498.68","Fixtures and Fittings - R&M","130231385","26/10/2018","Maintenance Programme","Centralised R&M","R2502"
"Wolverhampton City Council","http://opendatacommunities.org/id/metropolitan-district-council/wolverhampton","700770","Adt Fire And Security PLC","39718581-02","440.73","Fixtures and Fittings - R&M","130231378","26/10/2018","Maintenance Programme","Centralised R&M","R2502"
"Wolverhampton City Council","http://opendatacommunities.org/id/metropolitan-district-council/wolverhampton","700770","Adt Fire And Security PLC","39718585-02","398.28","Fixtures and Fittings - R&M","130231382","26/10/2018","Maintenance Programme","Centralised R&M","R2502"
"Wolverhampton City Council","http://opendatacommunities.org/id/metropolitan-district-council/wolverhampton","700770","Adt Fire And Security PLC","39505998-02","26.50","Services - Security","130230311","24/10/2018","Maintenance Programme","Centralised R&M","R4405"
"Wolverhampton City Council","http://opendatacommunities.org/id/metropolitan-district-council/wolverhampton","700770","Adt Fire And Security PLC","39505998-02","26.50","Services - Security","130230311","24/10/2018","Maintenance Programme","Centralised R&M","R4405"
"Wolverhampton City Council","http://opendatacommunities.org/id/metropolitan-district-council/wolverhampton","700770","Adt Fire And Security PLC","39505998-02","40.00","Services - Security","130230311","24/10/2018","Maintenance Programme","Centralised R&M","R4405"
"Wolverhampton City Council","http://opendatacommunities.org/id/metropolitan-district-council/wolverhampton","700770","Adt Fire And Security PLC","39010282-02","26.50","Services - Security","130233145","31/10/2018","Maintenance Programme","Centralised R&M","R4405"
"Wolverhampton City Council","http://opendatacommunities.org/id/metropolitan-district-council/wolverhampton","700770","Adt Fire And Security PLC","39718603-02","281.41","Fixtures and Fittings - R&M","130231395","26/10/2018","Maintenance Programme","Centralised R&M","R2502"
"Wolverhampton City Council","http://opendatacommunities.org/id/metropolitan-district-council/wolverhampton","700770","Adt Fire And Security PLC","39718598-02","129.88","Fixtures and Fittings - R&M","130231392","26/10/2018","Maintenance Programme","Centralised R&M","R2502"
"Wolverhampton City Council","http://opendatacommunities.org/id/metropolitan-district-council/wolverhampton","700770","Adt Fire And Security PLC","39718593-02","423.90","Fixtures and Fittings - R&M","130231387","26/10/2018","Maintenance Programme","Centralised R&M","R2502"
"Wolverhampton City Council","http://opendatacommunities.org/id/metropolitan-district-council/wolverhampton","700770","Adt Fire And Security PLC","39718583-02","0.19","Fixtures and Fittings - R&M","130231380","26/10/2018","Maintenance Programme","Centralised R&M","R2502"
"Wolverhampton City Council","http://opendatacommunities.org/id/metropolitan-district-council/wolverhampton","700770","Adt Fire And Security PLC","39718583-02","273.51","Fixtures and Fittings - R&M","130231380","26/10/2018","Maintenance Programme","Centralised R&M","R2502"
"Wolverhampton City Council","http://opendatacommunities.org/id/metropolitan-district-council/wolverhampton","700770","Adt Fire And Security PLC","39718583-02","118.98","Fixtures and Fittings - R&M","130231380","26/10/2018","Maintenance Programme","Centralised R&M","R2502"
"Wolverhampton City Council","http://opendatacommunities.org/id/metropolitan-district-council/wolverhampton","700770","Adt Fire And Security PLC","39718583-02","62.14","Fixtures and Fittings - R&M","130231380","26/10/2018","Maintenance Programme","Centralised R&M","R2502"
"Wolverhampton City Council","http://opendatacommunities.org/id/metropolitan-district-council/wolverhampton","700770","Adt Fire And Security PLC","39718583-02","16.12","Fixtures and Fittings - R&M","130231380","26/10/2018","Maintenance Programme","Centralised R&M","R2502"
"Wolverhampton City Council","http://opendatacommunities.org/id/metropolitan-district-council/wolverhampton","700770","Adt Fire And Security PLC","39718583-02","3.40","Fixtures and Fittings - R&M","130231380","26/10/2018","Maintenance Programme","Centralised R&M","R2502"
"Wolverhampton City Council","http://opendatacommunities.org/id/metropolitan-district-council/wolverhampton","700770","Adt Fire And Security PLC","39718595-02","347.90","Fixtures and Fittings - R&M","130231389","26/10/2018","Maintenance Programme","Centralised R&M","R2502"
"Wolverhampton City Council","http://opendatacommunities.org/id/metropolitan-district-council/wolverhampton","700770","Adt Fire And Security PLC","39718592-02","180.34","Fixtures and Fittings - R&M","130231386","26/10/2018","Maintenance Programme","Centralised R&M","R2502"
"Wolverhampton City Council","http://opendatacommunities.org/id/metropolitan-district-council/wolverhampton","700770","Adt Fire And Security PLC","39505999-02","93.00","Services - Security","130233133","31/10/2018","Maintenance Programme","Centralised R&M","R4405"
"Wolverhampton City Council","http://opendatacommunities.org/id/metropolitan-district-council/wolverhampton","700770","Adt Fire And Security PLC","38757791-02","1,750.00","Fixtures and Fittings - R&M","130229607","03/10/2018","Maintenance Programme","Centralised R&M","R2502"
"Wolverhampton City Council","http://opendatacommunities.org/id/metropolitan-district-council/wolverhampton","700770","Adt Fire And Security PLC","39718577-02","267.09","Fixtures and Fittings - R&M","130231374","26/10/2018","Maintenance Programme","Centralised R&M","R2502"
"Wolverhampton City Council","http://opendatacommunities.org/id/metropolitan-district-council/wolverhampton","700770","Adt Fire And Security PLC","39718601-02","169.33","Fixtures and Fittings - R&M","130231393","26/10/2018","Maintenance Programme","Centralised R&M","R2502"
"Wolverhampton City Council","http://opendatacommunities.org/id/metropolitan-district-council/wolverhampton","700770","Adt Fire And Security PLC","39718579-02","770.90","Fixtures and Fittings - R&M","130231376","26/10/2018","Maintenance Programme","Centralised R&M","R2502"
"Wolverhampton City Council","http://opendatacommunities.org/id/metropolitan-district-council/wolverhampton","700770","Adt Fire And Security PLC","39718596-02","502.68","Fixtures and Fittings - R&M","130231390","26/10/2018","Maintenance Programme","Centralised R&M","R2502"
"Wolverhampton City Council","http://opendatacommunities.org/id/metropolitan-district-council/wolverhampton","700770","Adt Fire And Security PLC","39718582-02","460.11","Fixtures and Fittings - R&M","130231379","26/10/2018","Maintenance Programme","Centralised R&M","R2502"
"Wolverhampton City Council","http://opendatacommunities.org/id/metropolitan-district-council/wolverhampton","700770","Adt Fire And Security PLC","39718578-02","405.68","Fixtures and Fittings - R&M","130231375","26/10/2018","Maintenance Programme","Centralised R&M","R2502"
"Wolverhampton City Council","http://opendatacommunities.org/id/metropolitan-district-council/wolverhampton","700770","Adt Fire And Security PLC","39503147-02","263.03","Services - Security","130230801","24/10/2018","Maintenance Programme","Centralised R&M","R4405"
"Wolverhampton City Council","http://opendatacommunities.org/id/metropolitan-district-council/wolverhampton","700770","Adt Fire And Security PLC","38972937-02","237.11","Fixtures and Fittings - R&M","130230969","10/10/2018","Maintenance Programme","Centralised R&M","R2502"
"Wolverhampton City Council","http://opendatacommunities.org/id/metropolitan-district-council/wolverhampton","700770","Adt Fire And Security PLC","38972937-02","606.22","Fixtures and Fittings - R&M","130230969","10/10/2018","Maintenance Programme","Centralised R&M","R2502"
"Wolverhampton City Council","http://opendatacommunities.org/id/metropolitan-district-council/wolverhampton","700770","Adt Fire And Security PLC","39718584-02","276.74","Fixtures and Fittings - R&M","130231381","26/10/2018","Maintenance Programme","Centralised R&M","R2502"
"Wolverhampton City Council","http://opendatacommunities.org/id/metropolitan-district-council/wolverhampton","700770","Adt Fire And Security PLC","39718597-02","172.24","Fixtures and Fittings - R&M","130231391","26/10/2018","Maintenance Programme","Centralised R&M","R2502"
"Wolverhampton City Council","http://opendatacommunities.org/id/metropolitan-district-council/wolverhampton","700770","Adt Fire And Security PLC","39718602-02","421.46","Fixtures and Fittings - R&M","130231394","26/10/2018","Maintenance Programme","Centralised R&M","R2502"
"Wolverhampton City Council","http://opendatacommunities.org/id/metropolitan-district-council/wolverhampton","700770","Adt Fire And Security PLC","39718576-02","570.70","Fixtures and Fittings - R&M","130231373","26/10/2018","Maintenance Programme","Centralised R&M","R2502"
"Wolverhampton City Council","http://opendatacommunities.org/id/metropolitan-district-council/wolverhampton","700770","Adt Fire And Security PLC","39718613-02","865.32","Fixtures and Fittings - R&M","130231397","26/10/2018","Maintenance Programme","Centralised R&M","R2502"
"Wolverhampton City Council","http://opendatacommunities.org/id/metropolitan-district-council/wolverhampton","700770","Adt Fire And Security PLC","39718580-02","468.06","Fixtures and Fittings - R&M","130231377","26/10/2018","Maintenance Programme","Centralised R&M","R2502"
"Wolverhampton City Council","http://opendatacommunities.org/id/metropolitan-district-council/wolverhampton","700770","Adt Fire And Security PLC","39718614-02","572.82","Fixtures and Fittings - R&M","130231398","31/10/2018","Maintenance Programme","Centralised R&M","R2502"
"Wolverhampton City Council","http://opendatacommunities.org/id/metropolitan-district-council/wolverhampton","700891","Adventure Kit UK Limited","3423","906.00","Equipment - Purchase","130230970","31/10/2018","School Planning & Resources","Towers Outdoor Education Centre","R4000"
"Wolverhampton City Council","http://opendatacommunities.org/id/metropolitan-district-council/wolverhampton","700979","Af Blakemore/Blakemore Foodservice","WCC000423","6,280.70","Provisions (Resale)","130229455","10/10/2018","Catering","Civic Centre Catering","R4102"
"Wolverhampton City Council","http://opendatacommunities.org/id/metropolitan-district-council/wolverhampton","700979","Af Blakemore/Blakemore Foodservice","5993212","279.71","Provisions (Resale)","130232488","26/10/2018","Visitor Economy","Bantock - Tea Rooms","R4102"
"Wolverhampton City Council","http://opendatacommunities.org/id/metropolitan-district-council/wolverhampton","700979","Af Blakemore/Blakemore Foodservice","5994592","17.20","Provisions (Resale)","130232489","26/10/2018","Visitor Economy","Bantock - Tea Rooms","R4102"
"Wolverhampton City Council","http://opendatacommunities.org/id/metropolitan-district-council/wolverhampton","700979","Af Blakemore/Blakemore Foodservice","5986086","381.16","Provisions (Resale)","130232482","26/10/2018","Visitor Economy","Bantock - Tea Rooms","R4102"
"Wolverhampton City Council","http://opendatacommunities.org/id/metropolitan-district-council/wolverhampton","700979","Af Blakemore/Blakemore Foodservice","WCC000437","24,016.00","Provisions (Resale)","130229598","12/10/2018","Catering","Education Catering - General Overheads","R4102"
"Wolverhampton City Council","http://opendatacommunities.org/id/metropolitan-district-council/wolverhampton","700979","Af Blakemore/Blakemore Foodservice","6002561","157.28","Provisions (Resale)","130232493","31/10/2018","Visitor Economy","Bantock - Tea Rooms","R4102"
"Wolverhampton City Council","http://opendatacommunities.org/id/metropolitan-district-council/wolverhampton","700979","Af Blakemore/Blakemore Foodservice","WCC000444","8.92","Provisions (Not for resale)","130232204","24/10/2018","Leisure Services","Bert Williams Leisure Centre Caf�","R4101"
"Wolverhampton City Council","http://opendatacommunities.org/id/metropolitan-district-council/wolverhampton","700979","Af Blakemore/Blakemore Foodservice","WCC000444","428.50","Provisions (Not for resale)","130232204","24/10/2018","Leisure Services","Bert Williams Leisure Centre Caf�","R4101"
"Wolverhampton City Council","http://opendatacommunities.org/id/metropolitan-district-council/wolverhampton","700979","Af Blakemore/Blakemore Foodservice","5998097","52.85","Provisions (Not for resale)","130228632","03/10/2018","Older People Provider Services","Blakenhall Resource Centre","R4101"
"Wolverhampton City Council","http://opendatacommunities.org/id/metropolitan-district-council/wolverhampton","700979","Af Blakemore/Blakemore Foodservice","WCC000432","635.37","Provisions (Not for resale)","130227910","03/10/2018","Leisure Services","WV Active Catering - Central","R4101"
"Wolverhampton City Council","http://opendatacommunities.org/id/metropolitan-district-council/wolverhampton","700979","Af Blakemore/Blakemore Foodservice","WCC000432","208.37","Provisions (Not for resale)","130227910","03/10/2018","Leisure Services","WV Active Catering - Central","R4101"
"Wolverhampton City Council","http://opendatacommunities.org/id/metropolitan-district-council/wolverhampton","700979","Af Blakemore/Blakemore Foodservice","5998084","82.73","Provisions (Not for resale)","130228631","03/10/2018","Older People Provider Services","Blakenhall Resource Centre","R4101"
"Wolverhampton City Council","http://opendatacommunities.org/id/metropolitan-district-council/wolverhampton","700979","Af Blakemore/Blakemore Foodservice","5998323","28.70","Provisions (Not for resale)","130228633","03/10/2018","Older People Provider Services","Blakenhall Resource Centre","R4101"
"Wolverhampton City Council","http://opendatacommunities.org/id/metropolitan-district-council/wolverhampton","700979","Af Blakemore/Blakemore Foodservice","WCC000430","560.27","Provisions (Not for resale)","130227908","03/10/2018","Leisure Services","Bert Williams Leisure Centre Caf�","R4101"
"Wolverhampton City Council","http://opendatacommunities.org/id/metropolitan-district-council/wolverhampton","700979","Af Blakemore/Blakemore Foodservice","5985333","418.20","Provisions (Resale)","130231676","17/10/2018","Visitor Economy","Art Gallery Tea Room","R4102"
"Wolverhampton City Council","http://opendatacommunities.org/id/metropolitan-district-council/wolverhampton","700979","Af Blakemore/Blakemore Foodservice","6039554","39.68","Provisions (Not for resale)","130231064","26/10/2018","Older People Provider Services","Blakenhall Resource Centre","R4101"
"Wolverhampton City Council","http://opendatacommunities.org/id/metropolitan-district-council/wolverhampton","700979","Af Blakemore/Blakemore Foodservice","6041810","306.91","Provisions (Resale)","130232502","26/10/2018","Visitor Economy","Bantock - Tea Rooms","R4102"
"Wolverhampton City Council","http://opendatacommunities.org/id/metropolitan-district-council/wolverhampton","700979","Af Blakemore/Blakemore Foodservice","WCC000433","3,749.72","Provisions (Resale)","130229600","12/10/2018","Catering","Civic Centre Catering","R4102"
"Wolverhampton City Council","http://opendatacommunities.org/id/metropolitan-district-council/wolverhampton","700979","Af Blakemore/Blakemore Foodservice","5993208","218.53","Provisions (Resale)","130232487","31/10/2018","Visitor Economy","Bantock - Tea Rooms","R4102"
"Wolverhampton City Council","http://opendatacommunities.org/id/metropolitan-district-council/wolverhampton","700979","Af Blakemore/Blakemore Foodservice","5997237","754.07","Provisions (Resale)","130232490","26/10/2018","Visitor Economy","Bantock - Tea Rooms","R4102"
"Wolverhampton City Council","http://opendatacommunities.org/id/metropolitan-district-council/wolverhampton","700979","Af Blakemore/Blakemore Foodservice","6036213","354.32","Provisions (Resale)","130232500","26/10/2018","Visitor Economy","Bantock - Tea Rooms","R4102"
"Wolverhampton City Council","http://opendatacommunities.org/id/metropolitan-district-council/wolverhampton","700979","Af Blakemore/Blakemore Foodservice","6046170","179.21","Provisions (Resale)","130232503","31/10/2018","Visitor Economy","Bantock - Tea Rooms","R4102"
"Wolverhampton City Council","http://opendatacommunities.org/id/metropolitan-district-council/wolverhampton","700979","Af Blakemore/Blakemore Foodservice","WCC000434","844.91","Provisions (Resale)","130229177","12/10/2018","Catering","Civic Centre Catering","R4102"
"Wolverhampton City Council","http://opendatacommunities.org/id/metropolitan-district-council/wolverhampton","700979","Af Blakemore/Blakemore Foodservice","5851821","309.74","Provisions (Not for resale)","130213117","03/10/2018","Older People Provider Services","Bradley Lodge Resource Centre","R4101"
"Wolverhampton City Council","http://opendatacommunities.org/id/metropolitan-district-council/wolverhampton","700979","Af Blakemore/Blakemore Foodservice","WCC000431","53.88","Provisions (Not for resale)","130227909","03/10/2018","Leisure Services","WV Active Catering","R4101"
"Wolverhampton City Council","http://opendatacommunities.org/id/metropolitan-district-council/wolverhampton","700979","Af Blakemore/Blakemore Foodservice","WCC000431","338.00","Provisions (Not for resale)","130227909","03/10/2018","Leisure Services","WV Active Catering","R4101"
"Wolverhampton City Council","http://opendatacommunities.org/id/metropolitan-district-council/wolverhampton","700979","Af Blakemore/Blakemore Foodservice","WCC000429","1,349.24","Provisions (Not for resale)","130227907","03/10/2018","Leisure Services","Bert Williams Leisure Centre Caf�","R4101"
"Wolverhampton City Council","http://opendatacommunities.org/id/metropolitan-district-council/wolverhampton","700979","Af Blakemore/Blakemore Foodservice","WCC000429","687.19","Provisions (Not for resale)","130227907","03/10/2018","Leisure Services","Bert Williams Leisure Centre Caf�","R4101"
"Wolverhampton City Council","http://opendatacommunities.org/id/metropolitan-district-council/wolverhampton","700979","Af Blakemore/Blakemore Foodservice","5934629","161.88","Provisions (Resale)","130231675","17/10/2018","Visitor Economy","Art Gallery Tea Room","R4102"
"Wolverhampton City Council","http://opendatacommunities.org/id/metropolitan-district-council/wolverhampton","700979","Af Blakemore/Blakemore Foodservice","WCC000422","730.33","Provisions (Resale)","130229599","10/10/2018","Catering","Meals on Wheels","R4102"
"Wolverhampton City Council","http://opendatacommunities.org/id/metropolitan-district-council/wolverhampton","700979","Af Blakemore/Blakemore Foodservice","6038348","8.08","Provisions (Resale)","130232501","26/10/2018","Visitor Economy","Bantock - Tea Rooms","R4102"
"Wolverhampton City Council","http://opendatacommunities.org/id/metropolitan-district-council/wolverhampton","700979","Af Blakemore/Blakemore Foodservice","5989973","388.84","Provisions (Resale)","130232485","26/10/2018","Visitor Economy","Bantock - Tea Rooms","R4102"
"Wolverhampton City Council","http://opendatacommunities.org/id/metropolitan-district-council/wolverhampton","700979","Af Blakemore/Blakemore Foodservice","WCC000436","13,409.98","Provisions (Resale)","130228767","12/10/2018","Catering","Education Catering - General Overheads","R4102"
"Wolverhampton City Council","http://opendatacommunities.org/id/metropolitan-district-council/wolverhampton","700979","Af Blakemore/Blakemore Foodservice","6030389","177.65","Provisions (Not for resale)","130231399","31/10/2018","Older People Provider Services","Blakenhall Resource Centre","R4101"
"Wolverhampton City Council","http://opendatacommunities.org/id/metropolitan-district-council/wolverhampton","700979","Af Blakemore/Blakemore Foodservice","WCA000057","1,366.35","Provisions (Not for resale)","130227906","03/10/2018","Leisure Services","WV Active Catering","R4101"
"Wolverhampton City Council","http://opendatacommunities.org/id/metropolitan-district-council/wolverhampton","700979","Af Blakemore/Blakemore Foodservice","WCA000057","514.87","Provisions (Not for resale)","130227906","03/10/2018","Leisure Services","WV Active Catering","R4101"
"Wolverhampton City Council","http://opendatacommunities.org/id/metropolitan-district-council/wolverhampton","700979","Af Blakemore/Blakemore Foodservice","5992936","16.80","Provisions (Not for resale)","130228630","03/10/2018","Older People Provider Services","Blakenhall Resource Centre","R4101"
"Wolverhampton City Council","http://opendatacommunities.org/id/metropolitan-district-council/wolverhampton","700979","Af Blakemore/Blakemore Foodservice","6012764","35.11","Provisions (Not for resale)","130229957","05/10/2018","Older People Provider Services","Blakenhall Resource Centre","R4101"
"Wolverhampton City Council","http://opendatacommunities.org/id/metropolitan-district-council/wolverhampton","701100","Aggregate Industries UK Limited","CBA27183268","122,680.32","Construction and Conversion","130229244","17/10/2018","","Transport Structual Maintenance","C1100"
"Wolverhampton City Council","http://opendatacommunities.org/id/metropolitan-district-council/wolverhampton","701100","Aggregate Industries UK Limited","CBA27203575","95,477.24","Construction and Conversion","130229608","24/10/2018","","Transport Structual Maintenance","C1100"
"Wolverhampton City Council","http://opendatacommunities.org/id/metropolitan-district-council/wolverhampton","701100","Aggregate Industries UK Limited","CBA27164830","83,664.04","Construction and Conversion","130228769","12/10/2018","","Transport Structual Maintenance","C1100"
"Wolverhampton City Council","http://opendatacommunities.org/id/metropolitan-district-council/wolverhampton","701100","Aggregate Industries UK Limited","CBA27155092","49,051.36","Construction and Conversion","130228635","10/10/2018","","Transport Structual Maintenance","C1100"
"Wolverhampton City Council","http://opendatacommunities.org/id/metropolitan-district-council/wolverhampton","701100","Aggregate Industries UK Limited","CBA27164828","90,000.00","Construction and Conversion","130228768","12/10/2018","","Transport Structual Maintenance","C1100"
"Wolverhampton City Council","http://opendatacommunities.org/id/metropolitan-district-council/wolverhampton","701100","Aggregate Industries UK Limited","CBA27154983","67,004.42","Construction and Conversion","130228634","10/10/2018","","Transport Structual Maintenance","C1100"
"Wolverhampton City Council","http://opendatacommunities.org/id/metropolitan-district-council/wolverhampton","701111","Agilisys Limited","1231771","8,500.00","Services - Professional Fees","130230802","31/10/2018","Public Service Reform","Service Director Public Services Reform","R4400"
"Wolverhampton City Council","http://opendatacommunities.org/id/metropolitan-district-council/wolverhampton","701155","Aidapt Bathrooms Limited","368535","940.00","Equipment - Purchase","130232305","26/10/2018","Older People Provider Services","ILS Stores","R4000"
"Wolverhampton City Council","http://opendatacommunities.org/id/metropolitan-district-council/wolverhampton","701155","Aidapt Bathrooms Limited","368535","99.00","Equipment - Purchase","130232305","26/10/2018","Older People Provider Services","ILS Stores","R4000"
"Wolverhampton City Council","http://opendatacommunities.org/id/metropolitan-district-council/wolverhampton","701155","Aidapt Bathrooms Limited","357838","1,410.00","Equipment - Purchase","130232068","31/10/2018","Older People Provider Services","ILS Stores","R4000"
"Wolverhampton City Council","http://opendatacommunities.org/id/metropolitan-district-council/wolverhampton","701155","Aidapt Bathrooms Limited","364876","99.00","Equipment - Purchase","130230147","05/10/2018","Older People Provider Services","ILS Stores","R4000"
"Wolverhampton City Council","http://opendatacommunities.org/id/metropolitan-district-council/wolverhampton","701155","Aidapt Bathrooms Limited","364876","1,880.00","Equipment - Purchase","130230147","05/10/2018","Older People Provider Services","ILS Stores","R4000"
"Wolverhampton City Council","http://opendatacommunities.org/id/metropolitan-district-council/wolverhampton","701265","Airport Express West Midlands Limited","1775","1,600.00","Client Transport","130230312","10/10/2018","Special Educational Needs","Secondary- Transport","R3042"
"Wolverhampton City Council","http://opendatacommunities.org/id/metropolitan-district-council/wolverhampton","701276","Airport-Link","BDW125","1,818.00","Client Transport","130229958","10/10/2018","Special Educational Needs","Special - Transport","R3042"
"Wolverhampton City Council","http://opendatacommunities.org/id/metropolitan-district-council/wolverhampton","701342","AKW Medi-Care Limited","1639705","101.80","Equipment - R & M","130231558","19/10/2018","Older People Provider Services","ILS Stores","R4003"
"Wolverhampton City Council","http://opendatacommunities.org/id/metropolitan-district-council/wolverhampton","701385","Albert Jagger Limited","1237654","52.10","Equipment - Purchase","190514921","10/10/2018","Fleet Services","Fleet Management","R4000"
"Wolverhampton City Council","http://opendatacommunities.org/id/metropolitan-district-council/wolverhampton","701385","Albert Jagger Limited","1237653","17.45","Equipment - Purchase","190514920","10/10/2018","Fleet Services","Fleet Management","R4000"
"Wolverhampton City Council","http://opendatacommunities.org/id/metropolitan-district-council/wolverhampton","701388","Albrighton Medical Practice","FOS4144","29.23","Services - Professional Fees","190521685","26/10/2018","Looked After Children","Fostering Team & Allowances","R4400"
"Wolverhampton City Council","http://opendatacommunities.org/id/metropolitan-district-council/wolverhampton","701388","Albrighton Medical Practice","FOS4143","29.23","Services - Professional Fees","190521684","26/10/2018","Looked After Children","Fostering Team & Allowances","R4400"
"Wolverhampton City Council","http://opendatacommunities.org/id/metropolitan-district-council/wolverhampton","701397","Aldridge Trimming","32414","158.34","Equipment - Purchase","190513877","05/10/2018","Fleet Services","Fleet Management","R4000"
"Wolverhampton City Council","http://opendatacommunities.org/id/metropolitan-district-council/wolverhampton","701397","Aldridge Trimming","32414","316.67","Equipment - Purchase","190513877","05/10/2018","Fleet Services","Fleet Management","R4000"
"Wolverhampton City Council","http://opendatacommunities.org/id/metropolitan-district-council/wolverhampton","701399","Alemba Limited","INV00000690","59,010.93","Computing - Purchase of Software","130229178","03/10/2018","The Hub","Quality and Improvement","R4531"
"Wolverhampton City Council","http://opendatacommunities.org/id/metropolitan-district-council/wolverhampton","701399","Alemba Limited","INV00000703","2,497.25","Computing - Purchase of Software","130230313","10/10/2018","The Hub","Quality and Improvement","R4531"
"Wolverhampton City Council","http://opendatacommunities.org/id/metropolitan-district-council/wolverhampton","701405","Alfred Bagnall & Sons (Mids) Limited","16560 -Credit correction","134.56","Construction and Conversion","130231966","19/10/2018","","Corporate Asset Management","C1100"
"Wolverhampton City Council","http://opendatacommunities.org/id/metropolitan-district-council/wolverhampton","701405","Alfred Bagnall & Sons (Mids) Limited","16490","807.38","Construction and Conversion","130195311","19/10/2018","","Corporate Asset Management","C1100"
"Wolverhampton City Council","http://opendatacommunities.org/id/metropolitan-district-council/wolverhampton","701436","Allsigns International Limited","464002","59.70","Equipment - Purchase","130229959","05/10/2018","Catering","Education Catering - General Overheads","R4000"
"Wolverhampton City Council","http://opendatacommunities.org/id/metropolitan-district-council/wolverhampton","701436","Allsigns International Limited","464002","6.27","Equipment - Purchase","130229959","05/10/2018","Catering","Education Catering - General Overheads","R4000"
"Wolverhampton City Council","http://opendatacommunities.org/id/metropolitan-district-council/wolverhampton","701436","Allsigns International Limited","464002","19.86","Equipment - Purchase","130229959","05/10/2018","Catering","Education Catering - General Overheads","R4000"
"Wolverhampton City Council","http://opendatacommunities.org/id/metropolitan-district-council/wolverhampton","701436","Allsigns International Limited","464002","39.72","Equipment - Purchase","130229959","05/10/2018","Catering","Education Catering - General Overheads","R4000"
"Wolverhampton City Council","http://opendatacommunities.org/id/metropolitan-district-council/wolverhampton","701437","Allsorts Office Supplies Limited","709545","348.85","Equipment - Purchase","130231827","19/10/2018","ICTS","Strategic ICTS (ICT Service Budget)","R4000"
"Wolverhampton City Council","http://opendatacommunities.org/id/metropolitan-district-council/wolverhampton","701439","Allstar Business Solutions Limited","E2010282726","1,271.67","Petrol","190516220","12/10/2018","Fleet Services","Fleet Management","R3000"
"Wolverhampton City Council","http://opendatacommunities.org/id/metropolitan-district-council/wolverhampton","701439","Allstar Business Solutions Limited","E2010282726","1.65","Petrol","190516220","12/10/2018","Fleet Services","Fleet Management","R3000"
"Wolverhampton City Council","http://opendatacommunities.org/id/metropolitan-district-council/wolverhampton","701439","Allstar Business Solutions Limited","E2010282726","72.03","Petrol","190516220","12/10/2018","Fleet Services","Fleet Management","R3000"
"Wolverhampton City Council","http://opendatacommunities.org/id/metropolitan-district-council/wolverhampton","701439","Allstar Business Solutions Limited","E2010282726","76.79","Petrol","190516220","12/10/2018","Fleet Services","Fleet Management","R3000"
"Wolverhampton City Council","http://opendatacommunities.org/id/metropolitan-district-council/wolverhampton","701439","Allstar Business Solutions Limited","E2010344282","41.67","Petrol","190518845","24/10/2018","Fleet Services","Fleet Management","R3000"
"Wolverhampton City Council","http://opendatacommunities.org/id/metropolitan-district-council/wolverhampton","701439","Allstar Business Solutions Limited","E2010344282","1,124.70","Petrol","190518845","24/10/2018","Fleet Services","Fleet Management","R3000"
"Wolverhampton City Council","http://opendatacommunities.org/id/metropolitan-district-council/wolverhampton","701446","Alphabiolabs","21864","161.25","Services - Professional Fees","130228056","17/10/2018","Legal Services","Centralised External Legal Costs","R4400"
"Wolverhampton City Council","http://opendatacommunities.org/id/metropolitan-district-council/wolverhampton","701448","Alphatec 2000 Limited","9397","552.60","Equipment - R & M","130230557","05/10/2018","ICTS","Document Centre - General","R4003"
"Wolverhampton City Council","http://opendatacommunities.org/id/metropolitan-district-council/wolverhampton","701448","Alphatec 2000 Limited","9347","190.00","Equipment - R & M","130230556","05/10/2018","ICTS","Document Centre - General","R4003"
"Wolverhampton City Council","http://opendatacommunities.org/id/metropolitan-district-council/wolverhampton","701508","Angel Solutions Limited","8159","10,000.00","Computing - Licences","130228636","10/10/2018","School Improvement","Research & Assessment Team","R4535"
"Wolverhampton City Council","http://opendatacommunities.org/id/metropolitan-district-council/wolverhampton","701509","Angel Springs Limited (Waterlogic)","4479548","15.64","Provisions (Not for resale)","130228988","10/10/2018","Facilities Management","Victoria Square, Block 11","R4101"
"Wolverhampton City Council","http://opendatacommunities.org/id/metropolitan-district-council/wolverhampton","701509","Angel Springs Limited (Waterlogic)","4588303","13.15","Provisions (Not for resale)","130232211","26/10/2018","Licensing","Licensing - Private Hire Vehicles","R4101"
"Wolverhampton City Council","http://opendatacommunities.org/id/metropolitan-district-council/wolverhampton","701509","Angel Springs Limited (Waterlogic)","4539970","-16.20","Provisions (Not for resale)","130232307","24/10/2018","Environmental Maintenance","Ground Maintenance East","R4101"
"Wolverhampton City Council","http://opendatacommunities.org/id/metropolitan-district-council/wolverhampton","701509","Angel Springs Limited (Waterlogic)","4318849","6.48","Provisions (Not for resale)","130232207","24/10/2018","Licensing","Licensing - Private Hire Vehicles","R4101"
"Wolverhampton City Council","http://opendatacommunities.org/id/metropolitan-district-council/wolverhampton","701509","Angel Springs Limited (Waterlogic)","4427397","0.48","Provisions (Not for resale)","130233038","31/10/2018","Visitor Economy","Archives","R4101"
"Wolverhampton City Council","http://opendatacommunities.org/id/metropolitan-district-council/wolverhampton","701509","Angel Springs Limited (Waterlogic)","4479541","48.60","Provisions (Not for resale)","130228781","03/10/2018","Parking Services","Parking Enforcement","R4101"
"Wolverhampton City Council","http://opendatacommunities.org/id/metropolitan-district-council/wolverhampton","701509","Angel Springs Limited (Waterlogic)","4535335","13.75","Provisions (Not for resale)","130228790","03/10/2018","Maintenance Programme","Centralised R&M","R4101"
"Wolverhampton City Council","http://opendatacommunities.org/id/metropolitan-district-council/wolverhampton","701509","Angel Springs Limited (Waterlogic)","4318817","13.75","Provisions (Not for resale)","130228638","03/10/2018","Maintenance Programme","Centralised R&M","R4101"
"Wolverhampton City Council","http://opendatacommunities.org/id/metropolitan-district-council/wolverhampton","701509","Angel Springs Limited (Waterlogic)","4479582","10.30","Provisions (Not for resale)","130229766","03/10/2018","Facilities Management","Culwell Street Depot","R4101"
"Wolverhampton City Council","http://opendatacommunities.org/id/metropolitan-district-council/wolverhampton","701509","Angel Springs Limited (Waterlogic)","4373974","15.64","Provisions (Not for resale)","130229764","03/10/2018","Facilities Management","Culwell Street Depot","R4101"
"Wolverhampton City Council","http://opendatacommunities.org/id/metropolitan-district-council/wolverhampton","701509","Angel Springs Limited (Waterlogic)","4427392","15.64","Provisions (Not for resale)","130228778","10/10/2018","Facilities Management","Victoria Square, Block 11","R4101"
"Wolverhampton City Council","http://opendatacommunities.org/id/metropolitan-district-council/wolverhampton","701509","Angel Springs Limited (Waterlogic)","4587526","10.30","Provisions (Not for resale)","130231067","26/10/2018","Environmental Maintenance","Arbor Scheme","R4101"
"Wolverhampton City Council","http://opendatacommunities.org/id/metropolitan-district-council/wolverhampton","701509","Angel Springs Limited (Waterlogic)","4588270","47.10","Provisions (Not for resale)","130231243","26/10/2018","School Planning & Resources","Education Data Services","R4101"
"Wolverhampton City Council","http://opendatacommunities.org/id/metropolitan-district-council/wolverhampton","701509","Angel Springs Limited (Waterlogic)","4318819RE-ISSUE","19.44","Provisions (Not for resale)","130226229","10/10/2018","Visitor Economy","Archives","R4101"
"Wolverhampton City Council","http://opendatacommunities.org/id/metropolitan-district-council/wolverhampton","701509","Angel Springs Limited (Waterlogic)","4426668","29.16","Provisions (Not for resale)","130228062","19/10/2018","Environmental Maintenance","Ground Maintenance East","R4101"
"Wolverhampton City Council","http://opendatacommunities.org/id/metropolitan-district-council/wolverhampton","701509","Angel Springs Limited (Waterlogic)","4479580","19.63","Provisions (Not for resale)","130232209","24/10/2018","Licensing","Licensing - Private Hire Vehicles","R4101"
"Wolverhampton City Council","http://opendatacommunities.org/id/metropolitan-district-council/wolverhampton","701509","Angel Springs Limited (Waterlogic)","4427428","20.60","Provisions (Not for resale)","130229609","03/10/2018","Facilities Management","Culwell Street Depot","R4101"
"Wolverhampton City Council","http://opendatacommunities.org/id/metropolitan-district-council/wolverhampton","701509","Angel Springs Limited (Waterlogic)","4535336","10.30","Provisions (Not for resale)","130229361","03/10/2018","Operation & Maintenance of Existing Network","Condition Surveys","R4101"
"Wolverhampton City Council","http://opendatacommunities.org/id/metropolitan-district-council/wolverhampton","701509","Angel Springs Limited (Waterlogic)","4479551","13.75","Provisions (Not for resale)","130228785","03/10/2018","Maintenance Programme","Centralised R&M","R4101"
"Wolverhampton City Council","http://opendatacommunities.org/id/metropolitan-district-council/wolverhampton","701509","Angel Springs Limited (Waterlogic)","4535370","15.64","Provisions (Not for resale)","130229768","03/10/2018","Facilities Management","Culwell Street Depot","R4101"
"Wolverhampton City Council","http://opendatacommunities.org/id/metropolitan-district-council/wolverhampton","701509","Angel Springs Limited (Waterlogic)","4427429","15.64","Provisions (Not for resale)","130229765","03/10/2018","Facilities Management","Culwell Street Depot","R4101"
"Wolverhampton City Council","http://opendatacommunities.org/id/metropolitan-district-council/wolverhampton","701509","Angel Springs Limited (Waterlogic)","4373941","13.75","Provisions (Not for resale)","130228643","03/10/2018","Maintenance Programme","Centralised R&M","R4101"
"Wolverhampton City Council","http://opendatacommunities.org/id/metropolitan-district-council/wolverhampton","701509","Angel Springs Limited (Waterlogic)","4373930","23.26","Provisions (Not for resale)","130228640","03/10/2018","Parking Services","Car Parks Operational Staff","R4101"
"Wolverhampton City Council","http://opendatacommunities.org/id/metropolitan-district-council/wolverhampton","701509","Angel Springs Limited (Waterlogic)","4479308","234.00","Provisions (Not for resale)","130230804","10/10/2018","Early Intervention","EIP Locality 5 � Whitmore Reans","R4101"
"Wolverhampton City Council","http://opendatacommunities.org/id/metropolitan-district-council/wolverhampton","701509","Angel Springs Limited (Waterlogic)","4535333","15.64","Provisions (Not for resale)","130228989","10/10/2018","Facilities Management","Victoria Square, Block 11","R4101"
"Wolverhampton City Council","http://opendatacommunities.org/id/metropolitan-district-council/wolverhampton","701509","Angel Springs Limited (Waterlogic)","4588310","229.94","Provisions (Not for resale)","130231068","26/10/2018","Fleet Services","Fleet Management","R4101"
"Wolverhampton City Council","http://opendatacommunities.org/id/metropolitan-district-council/wolverhampton","701509","Angel Springs Limited (Waterlogic)","4373970","19.63","Provisions (Not for resale)","130232306","26/10/2018","Licensing","Licensing - Private Hire Vehicles","R4101"
"Wolverhampton City Council","http://opendatacommunities.org/id/metropolitan-district-council/wolverhampton","701509","Angel Springs Limited (Waterlogic)","4535366","15.81","Provisions (Not for resale)","130232210","24/10/2018","Licensing","Licensing - Private Hire Vehicles","R4101"
"Wolverhampton City Council","http://opendatacommunities.org/id/metropolitan-district-council/wolverhampton","701509","Angel Springs Limited (Waterlogic)","4427395","13.75","Provisions (Not for resale)","130228651","03/10/2018","Maintenance Programme","Centralised R&M","R4101"
"Wolverhampton City Council","http://opendatacommunities.org/id/metropolitan-district-council/wolverhampton","701509","Angel Springs Limited (Waterlogic)","4479584","15.64","Provisions (Not for resale)","130229767","03/10/2018","Facilities Management","Culwell Street Depot","R4101"
"Wolverhampton City Council","http://opendatacommunities.org/id/metropolitan-district-council/wolverhampton","701509","Angel Springs Limited (Waterlogic)","4479540","29.74","Provisions (Not for resale)","130228780","03/10/2018","Parking Services","Car Parks Operational Staff","R4101"
"Wolverhampton City Council","http://opendatacommunities.org/id/metropolitan-district-council/wolverhampton","701509","Angel Springs Limited (Waterlogic)","4535369","121.92","Provisions (Not for resale)","130229611","03/10/2018","Facilities Management","Culwell Street Depot","R4101"
"Wolverhampton City Council","http://opendatacommunities.org/id/metropolitan-district-council/wolverhampton","701509","Angel Springs Limited (Waterlogic)","4373939","15.64","Provisions (Not for resale)","130228776","10/10/2018","Facilities Management","Victoria Square, Block 11","R4101"
"Wolverhampton City Council","http://opendatacommunities.org/id/metropolitan-district-council/wolverhampton","701509","Angel Springs Limited (Waterlogic)","4587525","6.48","Provisions (Not for resale)","130231066","26/10/2018","Environmental Maintenance","Arbor Scheme","R4101"
"Wolverhampton City Council","http://opendatacommunities.org/id/metropolitan-district-council/wolverhampton","701509","Angel Springs Limited (Waterlogic)","4587524","23.26","Provisions (Not for resale)","130231828","26/10/2018","Environmental Maintenance","Ground Maintenance East","R4101"
"Wolverhampton City Council","http://opendatacommunities.org/id/metropolitan-district-council/wolverhampton","701509","Angel Springs Limited (Waterlogic)","4427426","22.29","Provisions (Not for resale)","130232208","24/10/2018","Licensing","Licensing - Private Hire Vehicles","R4101"
"Wolverhampton City Council","http://opendatacommunities.org/id/metropolitan-district-council/wolverhampton","701509","Angel Springs Limited (Waterlogic)","4535373","89.52","Provisions (Not for resale)","130231065","12/10/2018","Fleet Services","Fleet Management","R4101"
"Wolverhampton City Council","http://opendatacommunities.org/id/metropolitan-district-council/wolverhampton","701511","Angelbell Limited T/A Hulleys Frozen","579512","128.93","Provisions (Resale)","130231043","12/10/2018","Visitor Economy","Bantock - Tea Rooms","R4102"
"Wolverhampton City Council","http://opendatacommunities.org/id/metropolitan-district-council/wolverhampton","701511","Angelbell Limited T/A Hulleys Frozen","748123","-12.80","Provisions (Resale)","130232947","31/10/2018","Visitor Economy","Bantock - Tea Rooms","R4102"
"Wolverhampton City Council","http://opendatacommunities.org/id/metropolitan-district-council/wolverhampton","701511","Angelbell Limited T/A Hulleys Frozen","608208","94.13","Provisions (Resale)","130231051","17/10/2018","Visitor Economy","Bantock - Tea Rooms","R4102"
"Wolverhampton City Council","http://opendatacommunities.org/id/metropolitan-district-council/wolverhampton","701511","Angelbell Limited T/A Hulleys Frozen","598903","230.49","Provisions (Resale)","130231050","12/10/2018","Visitor Economy","Bantock - Tea Rooms","R4102"
"Wolverhampton City Council","http://opendatacommunities.org/id/metropolitan-district-council/wolverhampton","701511","Angelbell Limited T/A Hulleys Frozen","549060","118.52","Provisions (Resale)","130231041","12/10/2018","Visitor Economy","Bantock - Tea Rooms","R4102"
"Wolverhampton City Council","http://opendatacommunities.org/id/metropolitan-district-council/wolverhampton","701511","Angelbell Limited T/A Hulleys Frozen","595059","16.00","Provisions (Resale)","130231052","17/10/2018","Visitor Economy","Bantock - Tea Rooms","R4102"
"Wolverhampton City Council","http://opendatacommunities.org/id/metropolitan-district-council/wolverhampton","701511","Angelbell Limited T/A Hulleys Frozen","674283","254.86","Provisions (Resale)","130232948","31/10/2018","Visitor Economy","Bantock - Tea Rooms","R4102"
"Wolverhampton City Council","http://opendatacommunities.org/id/metropolitan-district-council/wolverhampton","701511","Angelbell Limited T/A Hulleys Frozen","591330","181.29","Provisions (Resale)","130231046","12/10/2018","Visitor Economy","Bantock - Tea Rooms","R4102"
"Wolverhampton City Council","http://opendatacommunities.org/id/metropolitan-district-council/wolverhampton","701511","Angelbell Limited T/A Hulleys Frozen","583237","115.47","Provisions (Resale)","130231044","12/10/2018","Visitor Economy","Bantock - Tea Rooms","R4102"
"Wolverhampton City Council","http://opendatacommunities.org/id/metropolitan-district-council/wolverhampton","701511","Angelbell Limited T/A Hulleys Frozen","571793","169.49","Provisions (Resale)","130231042","12/10/2018","Visitor Economy","Bantock - Tea Rooms","R4102"
"Wolverhampton City Council","http://opendatacommunities.org/id/metropolitan-district-council/wolverhampton","701511","Angelbell Limited T/A Hulleys Frozen","594931","156.94","Provisions (Resale)","130231048","12/10/2018","Visitor Economy","Bantock - Tea Rooms","R4102"
"Wolverhampton City Council","http://opendatacommunities.org/id/metropolitan-district-council/wolverhampton","701512","Anglia Dna Services Limited","7262","124.67","Services - Professional Fees","130229919","12/10/2018","Legal Services","Centralised External Legal Costs","R4400"
"Wolverhampton City Council","http://opendatacommunities.org/id/metropolitan-district-council/wolverhampton","701512","Anglia Dna Services Limited","7437","141.33","Services - Professional Fees","130230971","17/10/2018","Legal Services","Centralised External Legal Costs","R4400"
"Wolverhampton City Council","http://opendatacommunities.org/id/metropolitan-district-council/wolverhampton","701512","Anglia Dna Services Limited","7231","16.67","Services - Professional Fees","130229769","12/10/2018","Legal Services","Centralised External Legal Costs","R4400"
"Wolverhampton City Council","http://opendatacommunities.org/id/metropolitan-district-council/wolverhampton","701545","Apcoa Parking (UK) Limited","269815","49,886.27","TPP - Traffic Management","130227688","03/10/2018","Parking Services","Parking Enforcement","R5050"
"Wolverhampton City Council","http://opendatacommunities.org/id/metropolitan-district-council/wolverhampton","701545","Apcoa Parking (UK) Limited","269212","55,034.44","TPP - Traffic Management","130224675","03/10/2018","Parking Services","Parking Enforcement","R5050"
"Wolverhampton City Council","http://opendatacommunities.org/id/metropolitan-district-council/wolverhampton","701547","Apetito Limited","9002460741","1,266.04","Provisions (Resale)","130229770","17/10/2018","Catering","Meals on Wheels","R4102"
"Wolverhampton City Council","http://opendatacommunities.org/id/metropolitan-district-council/wolverhampton","701547","Apetito Limited","9002449786","1,044.34","Provisions (Resale)","130228791","10/10/2018","Catering","Meals on Wheels","R4102"
"Wolverhampton City Council","http://opendatacommunities.org/id/metropolitan-district-council/wolverhampton","701547","Apetito Limited","9002463678","54.24","Provisions (Resale)","130230149","24/10/2018","Catering","Meals on Wheels","R4102"
"Wolverhampton City Council","http://opendatacommunities.org/id/metropolitan-district-council/wolverhampton","701547","Apetito Limited","9002459243","-28.86","Provisions (Resale)","130232732","31/10/2018","Catering","Meals on Wheels","R4102"
"Wolverhampton City Council","http://opendatacommunities.org/id/metropolitan-district-council/wolverhampton","701547","Apetito Limited","9002453906","945.90","Provisions (Resale)","130229245","10/10/2018","Catering","Meals on Wheels","R4102"
"Wolverhampton City Council","http://opendatacommunities.org/id/metropolitan-district-council/wolverhampton","701547","Apetito Limited","9002453906","56.42","Provisions (Resale)","130229245","10/10/2018","Catering","Meals on Wheels","R4102"
"Wolverhampton City Council","http://opendatacommunities.org/id/metropolitan-district-council/wolverhampton","701547","Apetito Limited","9002473628","-33.62","Provisions (Resale)","130231244","31/10/2018","Catering","Meals on Wheels","R4102"
"Wolverhampton City Council","http://opendatacommunities.org/id/metropolitan-district-council/wolverhampton","701547","Apetito Limited","9002443093","1,352.35","Provisions (Resale)","130228071","03/10/2018","Catering","Meals on Wheels","R4102"
"Wolverhampton City Council","http://opendatacommunities.org/id/metropolitan-district-council/wolverhampton","701547","Apetito Limited","9002443093","0.10","Provisions (Resale)","130228071","03/10/2018","Catering","Meals on Wheels","R4102"
"Wolverhampton City Council","http://opendatacommunities.org/id/metropolitan-district-council/wolverhampton","701547","Apetito Limited","9002459242","-37.09","Provisions (Resale)","130232731","31/10/2018","Catering","Meals on Wheels","R4102"
"Wolverhampton City Council","http://opendatacommunities.org/id/metropolitan-district-council/wolverhampton","701547","Apetito Limited","9002466514","1,381.92","Provisions (Resale)","130230570","24/10/2018","Catering","Meals on Wheels","R4102"
"Wolverhampton City Council","http://opendatacommunities.org/id/metropolitan-district-council/wolverhampton","701547","Apetito Limited","9002475175","1,341.18","Provisions (Resale)","130231559","31/10/2018","Catering","Meals on Wheels","R4102"
"Wolverhampton City Council","http://opendatacommunities.org/id/metropolitan-district-council/wolverhampton","701547","Apetito Limited","9002470926","1,050.73","Provisions (Resale)","130231069","31/10/2018","Catering","Meals on Wheels","R4102"
"Wolverhampton City Council","http://opendatacommunities.org/id/metropolitan-district-council/wolverhampton","701547","Apetito Limited","9002463677","1,311.84","Provisions (Resale)","130230148","24/10/2018","Catering","Meals on Wheels","R4102"
"Wolverhampton City Council","http://opendatacommunities.org/id/metropolitan-district-council/wolverhampton","701547","Apetito Limited","9002446997","1,226.65","Provisions (Resale)","130228430","03/10/2018","Catering","Meals on Wheels","R4102"
"Wolverhampton City Council","http://opendatacommunities.org/id/metropolitan-district-council/wolverhampton","701547","Apetito Limited","9002456583","70.65","Provisions (Resale)","130229461","17/10/2018","Catering","Meals on Wheels","R4102"
"Wolverhampton City Council","http://opendatacommunities.org/id/metropolitan-district-council/wolverhampton","701547","Apetito Limited","9002456583","991.70","Provisions (Resale)","130229461","17/10/2018","Catering","Meals on Wheels","R4102"
"Wolverhampton City Council","http://opendatacommunities.org/id/metropolitan-district-council/wolverhampton","701594","Argos Business Solutions Limited","01688860","193.99","Grant Payments","130228521","05/10/2018","Early Intervention","EIP Locality 4 - Bingley","R4700"
"Wolverhampton City Council","http://opendatacommunities.org/id/metropolitan-district-council/wolverhampton","701594","Argos Business Solutions Limited","01693134","143.20","Grant Payments","130229462","19/10/2018","Early Intervention","EIP Locality 4 - Bingley","R4700"
"Wolverhampton City Council","http://opendatacommunities.org/id/metropolitan-district-council/wolverhampton","701594","Argos Business Solutions Limited","01688862","193.99","Grant Payments","130227912","05/10/2018","Early Intervention","EIP Locality 4 - Bingley","R4700"
"Wolverhampton City Council","http://opendatacommunities.org/id/metropolitan-district-council/wolverhampton","701594","Argos Business Solutions Limited","01693742","143.20","Grant Payments","130229612","24/10/2018","Early Intervention","EIP Locality 4 - Bingley","R4700"
"Wolverhampton City Council","http://opendatacommunities.org/id/metropolitan-district-council/wolverhampton","701594","Argos Business Solutions Limited","01688861","250.57","Grant Payments","130227911","05/10/2018","Early Intervention","EIP Locality 4 - Bingley","R4700"
"Wolverhampton City Council","http://opendatacommunities.org/id/metropolitan-district-council/wolverhampton","701594","Argos Business Solutions Limited","01650823","70.45","Equipment - Purchase","130229960","03/10/2018","Early Intervention","EIP Locality 2 � Bilston/Rocket Pool","R4000"
"Wolverhampton City Council","http://opendatacommunities.org/id/metropolitan-district-council/wolverhampton","701595","Argus Fire Protection Co.Limited","42112","517.00","R&M - Departmental planned (internal)","130229771","31/10/2018","Maintenance Programme","Centralised R&M","R2000"
"Wolverhampton City Council","http://opendatacommunities.org/id/metropolitan-district-council/wolverhampton","701603","Arnold Clark Finance Limited","HI2429869","18.12","Hire of Vehicles","190518414","19/10/2018","Fleet Services","Fleet Management","R3200"
"Wolverhampton City Council","http://opendatacommunities.org/id/metropolitan-district-council/wolverhampton","701603","Arnold Clark Finance Limited","HI2430667","282.24","Hire of Vehicles","190518417","19/10/2018","Fleet Services","Fleet Management","R3200"
"Wolverhampton City Council","http://opendatacommunities.org/id/metropolitan-district-council/wolverhampton","701603","Arnold Clark Finance Limited","HI2427262","48.75","Hire of Vehicles","190518401","19/10/2018","Fleet Services","Fleet Management","R3200"
"Wolverhampton City Council","http://opendatacommunities.org/id/metropolitan-district-council/wolverhampton","701603","Arnold Clark Finance Limited","HI2423739","36.24","Hire of Vehicles","190518394","19/10/2018","Fleet Services","Fleet Management","R3200"
"Wolverhampton City Council","http://opendatacommunities.org/id/metropolitan-district-council/wolverhampton","701603","Arnold Clark Finance Limited","HI2422953","54.60","Hire of Vehicles","190518385","19/10/2018","Fleet Services","Fleet Management","R3200"
"Wolverhampton City Council","http://opendatacommunities.org/id/metropolitan-district-council/wolverhampton","701603","Arnold Clark Finance Limited","HI2421407","60.90","Hire of Vehicles","190518379","19/10/2018","Fleet Services","Fleet Management","R3200"
"Wolverhampton City Council","http://opendatacommunities.org/id/metropolitan-district-council/wolverhampton","701603","Arnold Clark Finance Limited","HI2422962","14.55","Hire of Vehicles","190518386","19/10/2018","Fleet Services","Fleet Management","R3200"
"Wolverhampton City Council","http://opendatacommunities.org/id/metropolitan-district-council/wolverhampton","701603","Arnold Clark Finance Limited","HI2421499","282.24","Hire of Vehicles","190518380","19/10/2018","Fleet Services","Fleet Management","R3200"
"Wolverhampton City Council","http://opendatacommunities.org/id/metropolitan-district-council/wolverhampton","701603","Arnold Clark Finance Limited","HI2422972","23.25","Hire of Vehicles","190518388","19/10/2018","Fleet Services","Fleet Management","R3200"
"Wolverhampton City Council","http://opendatacommunities.org/id/metropolitan-district-council/wolverhampton","701603","Arnold Clark Finance Limited","HI2424400","18.12","Hire of Vehicles","190518395","19/10/2018","Fleet Services","Fleet Management","R3200"
"Wolverhampton City Council","http://opendatacommunities.org/id/metropolitan-district-council/wolverhampton","701603","Arnold Clark Finance Limited","HI2430523","139.90","Hire of Vehicles","190518416","19/10/2018","Fleet Services","Fleet Management","R3200"
"Wolverhampton City Council","http://opendatacommunities.org/id/metropolitan-district-council/wolverhampton","701603","Arnold Clark Finance Limited","HI2421935","139.90","Hire of Vehicles","190518382","19/10/2018","Fleet Services","Fleet Management","R3200"
"Wolverhampton City Council","http://opendatacommunities.org/id/metropolitan-district-council/wolverhampton","701603","Arnold Clark Finance Limited","HI2423010","139.90","Hire of Vehicles","190518390","19/10/2018","Fleet Services","Fleet Management","R3200"
"Wolverhampton City Council","http://opendatacommunities.org/id/metropolitan-district-council/wolverhampton","701603","Arnold Clark Finance Limited","HI2422469","40.32","Hire of Vehicles","190518383","19/10/2018","Fleet Services","Fleet Management","R3200"
"Wolverhampton City Council","http://opendatacommunities.org/id/metropolitan-district-council/wolverhampton","701603","Arnold Clark Finance Limited","HI2423013","33.25","Hire of Vehicles","190518392","19/10/2018","Fleet Services","Fleet Management","R3200"
"Wolverhampton City Council","http://opendatacommunities.org/id/metropolitan-district-council/wolverhampton","701603","Arnold Clark Finance Limited","HI2421500","282.24","Hire of Vehicles","190518381","19/10/2018","Fleet Services","Fleet Management","R3200"
"Wolverhampton City Council","http://opendatacommunities.org/id/metropolitan-district-council/wolverhampton","701603","Arnold Clark Finance Limited","HI2428464","23.25","Hire of Vehicles","190518411","19/10/2018","Fleet Services","Fleet Management","R3200"
"Wolverhampton City Council","http://opendatacommunities.org/id/metropolitan-district-council/wolverhampton","701603","Arnold Clark Finance Limited","HI2428411","262.08","Hire of Vehicles","190518409","19/10/2018","Fleet Services","Fleet Management","R3200"
"Wolverhampton City Council","http://opendatacommunities.org/id/metropolitan-district-council/wolverhampton","701603","Arnold Clark Finance Limited","HI2432394","14.55","Hire of Vehicles","190518420","19/10/2018","Fleet Services","Fleet Management","R3200"
"Wolverhampton City Council","http://opendatacommunities.org/id/metropolitan-district-council/wolverhampton","701603","Arnold Clark Finance Limited","HI2433298","139.90","Hire of Vehicles","190518422","19/10/2018","Fleet Services","Fleet Management","R3200"
"Wolverhampton City Council","http://opendatacommunities.org/id/metropolitan-district-council/wolverhampton","701603","Arnold Clark Finance Limited","HI2426097","18.12","Hire of Vehicles","190518398","19/10/2018","Fleet Services","Fleet Management","R3200"
"Wolverhampton City Council","http://opendatacommunities.org/id/metropolitan-district-council/wolverhampton","701603","Arnold Clark Finance Limited","HI2427263","54.60","Hire of Vehicles","190518402","19/10/2018","Fleet Services","Fleet Management","R3200"
"Wolverhampton City Council","http://opendatacommunities.org/id/metropolitan-district-council/wolverhampton","701603","Arnold Clark Finance Limited","HI2425121","60.90","Hire of Vehicles","190518397","19/10/2018","Fleet Services","Fleet Management","R3200"
"Wolverhampton City Council","http://opendatacommunities.org/id/metropolitan-district-council/wolverhampton","701603","Arnold Clark Finance Limited","HI2427299","15.15","Hire of Vehicles","190518408","19/10/2018","Fleet Services","Fleet Management","R3200"
"Wolverhampton City Council","http://opendatacommunities.org/id/metropolitan-district-council/wolverhampton","701603","Arnold Clark Finance Limited","HI2431963","18.12","Hire of Vehicles","190518418","19/10/2018","Fleet Services","Fleet Management","R3200"
"Wolverhampton City Council","http://opendatacommunities.org/id/metropolitan-district-council/wolverhampton","701603","Arnold Clark Finance Limited","HI2431963","20.09","Hire of Vehicles","190518418","19/10/2018","Fleet Services","Fleet Management","R3200"
"Wolverhampton City Council","http://opendatacommunities.org/id/metropolitan-district-council/wolverhampton","701603","Arnold Clark Finance Limited","HI2427266","23.24","Hire of Vehicles","190518405","19/10/2018","Fleet Services","Fleet Management","R3200"
"Wolverhampton City Council","http://opendatacommunities.org/id/metropolitan-district-council/wolverhampton","701603","Arnold Clark Finance Limited","HI2419780","12.75","Hire of Vehicles","190518377","19/10/2018","Fleet Services","Fleet Management","R3200"
"Wolverhampton City Council","http://opendatacommunities.org/id/metropolitan-district-council/wolverhampton","701603","Arnold Clark Finance Limited","HI2427265","65.00","Hire of Vehicles","190518404","19/10/2018","Fleet Services","Fleet Management","R3200"
"Wolverhampton City Council","http://opendatacommunities.org/id/metropolitan-district-council/wolverhampton","701603","Arnold Clark Finance Limited","HI2427269","282.24","Hire of Vehicles","190518406","19/10/2018","Fleet Services","Fleet Management","R3200"
"Wolverhampton City Council","http://opendatacommunities.org/id/metropolitan-district-council/wolverhampton","701603","Arnold Clark Finance Limited","HI2426098","18.12","Hire of Vehicles","190518399","19/10/2018","Fleet Services","Fleet Management","R3200"
"Wolverhampton City Council","http://opendatacommunities.org/id/metropolitan-district-council/wolverhampton","701603","Arnold Clark Finance Limited","HI2427264","23.24","Hire of Vehicles","190518403","19/10/2018","Fleet Services","Fleet Management","R3200"
"Wolverhampton City Council","http://opendatacommunities.org/id/metropolitan-district-council/wolverhampton","701603","Arnold Clark Finance Limited","HI2427273","68.25","Hire of Vehicles","190518407","19/10/2018","Fleet Services","Fleet Management","R3200"
"Wolverhampton City Council","http://opendatacommunities.org/id/metropolitan-district-council/wolverhampton","701603","Arnold Clark Finance Limited","HI2422471","46.50","Hire of Vehicles","190518384","19/10/2018","Fleet Services","Fleet Management","R3200"
"Wolverhampton City Council","http://opendatacommunities.org/id/metropolitan-district-council/wolverhampton","701603","Arnold Clark Finance Limited","HI2423023","81.25","Hire of Vehicles","190518393","19/10/2018","Fleet Services","Fleet Management","R3200"
"Wolverhampton City Council","http://opendatacommunities.org/id/metropolitan-district-council/wolverhampton","701603","Arnold Clark Finance Limited","HI2423011","139.90","Hire of Vehicles","190518391","19/10/2018","Fleet Services","Fleet Management","R3200"
"Wolverhampton City Council","http://opendatacommunities.org/id/metropolitan-district-council/wolverhampton","701603","Arnold Clark Finance Limited","HI2429870","125.64","Hire of Vehicles","190518415","19/10/2018","Fleet Services","Fleet Management","R3200"
"Wolverhampton City Council","http://opendatacommunities.org/id/metropolitan-district-council/wolverhampton","701603","Arnold Clark Finance Limited","HI2428412","18.12","Hire of Vehicles","190518410","19/10/2018","Fleet Services","Fleet Management","R3200"
"Wolverhampton City Council","http://opendatacommunities.org/id/metropolitan-district-council/wolverhampton","701603","Arnold Clark Finance Limited","HI2432675","18.12","Hire of Vehicles","190518421","19/10/2018","Fleet Services","Fleet Management","R3200"
"Wolverhampton City Council","http://opendatacommunities.org/id/metropolitan-district-council/wolverhampton","701603","Arnold Clark Finance Limited","HI2432675","18.24","Hire of Vehicles","190518421","19/10/2018","Fleet Services","Fleet Management","R3200"
"Wolverhampton City Council","http://opendatacommunities.org/id/metropolitan-district-council/wolverhampton","701603","Arnold Clark Finance Limited","HI2431964","15.15","Hire of Vehicles","190518419","19/10/2018","Fleet Services","Fleet Management","R3200"
"Wolverhampton City Council","http://opendatacommunities.org/id/metropolitan-district-council/wolverhampton","701603","Arnold Clark Finance Limited","HI2420983","52.14","Hire of Vehicles","190518378","19/10/2018","Fleet Services","Fleet Management","R3200"
"Wolverhampton City Council","http://opendatacommunities.org/id/metropolitan-district-council/wolverhampton","701603","Arnold Clark Finance Limited","HI2426733","12.18","Hire of Vehicles","190518400","19/10/2018","Fleet Services","Fleet Management","R3200"
"Wolverhampton City Council","http://opendatacommunities.org/id/metropolitan-district-council/wolverhampton","701603","Arnold Clark Finance Limited","HI2424946","139.90","Hire of Vehicles","190518396","19/10/2018","Fleet Services","Fleet Management","R3200"
"Wolverhampton City Council","http://opendatacommunities.org/id/metropolitan-district-council/wolverhampton","701603","Arnold Clark Finance Limited","HI2429095","282.24","Hire of Vehicles","190518412","19/10/2018","Fleet Services","Fleet Management","R3200"
"Wolverhampton City Council","http://opendatacommunities.org/id/metropolitan-district-council/wolverhampton","701603","Arnold Clark Finance Limited","HI2429177","15.15","Hire of Vehicles","190518413","19/10/2018","Fleet Services","Fleet Management","R3200"
"Wolverhampton City Council","http://opendatacommunities.org/id/metropolitan-district-council/wolverhampton","701603","Arnold Clark Finance Limited","HI2429177","27.91","Hire of Vehicles","190518413","19/10/2018","Fleet Services","Fleet Management","R3200"
"Wolverhampton City Council","http://opendatacommunities.org/id/metropolitan-district-council/wolverhampton","701603","Arnold Clark Finance Limited","HI2422980","18.12","Hire of Vehicles","190518389","19/10/2018","Fleet Services","Fleet Management","R3200"
"Wolverhampton City Council","http://opendatacommunities.org/id/metropolitan-district-council/wolverhampton","701603","Arnold Clark Finance Limited","HI2422969","66.50","Hire of Vehicles","190518387","19/10/2018","Fleet Services","Fleet Management","R3200"
"Wolverhampton City Council","http://opendatacommunities.org/id/metropolitan-district-council/wolverhampton","701613","Arthur Brett (Catering) Limited","ID1057149","142.26","Provisions (Resale)","130231829","19/10/2018","Visitor Economy","Bantock - Tea Rooms","R4102"
"Wolverhampton City Council","http://opendatacommunities.org/id/metropolitan-district-council/wolverhampton","701613","Arthur Brett (Catering) Limited","ID1054036","7.71","Provisions (Resale)","130230315","10/10/2018","Catering","West Park Tea Room","R4102"
"Wolverhampton City Council","http://opendatacommunities.org/id/metropolitan-district-council/wolverhampton","701613","Arthur Brett (Catering) Limited","3009185","132.87","Provisions (Resale)","130232514","26/10/2018","Catering","Meals on Wheels","R4102"
"Wolverhampton City Council","http://opendatacommunities.org/id/metropolitan-district-council/wolverhampton","701613","Arthur Brett (Catering) Limited","ID1057435","137.42","Provisions (Resale)","130231680","24/10/2018","Visitor Economy","Art Gallery Tea Room","R4102"
"Wolverhampton City Council","http://opendatacommunities.org/id/metropolitan-district-council/wolverhampton","701613","Arthur Brett (Catering) Limited","ID1058753","90.86","Provisions (Resale)","130232075","24/10/2018","Visitor Economy","Bantock - Tea Rooms","R4102"
"Wolverhampton City Council","http://opendatacommunities.org/id/metropolitan-district-council/wolverhampton","701613","Arthur Brett (Catering) Limited","ID1059661","81.22","Provisions (Resale)","130232310","31/10/2018","Visitor Economy","Bantock - Tea Rooms","R4102"
"Wolverhampton City Council","http://opendatacommunities.org/id/metropolitan-district-council/wolverhampton","701613","Arthur Brett (Catering) Limited","3009182","217.02","Provisions (Resale)","130231403","12/10/2018","Leisure Services","Bert Williams Leisure Centre Caf�","R4102"
"Wolverhampton City Council","http://opendatacommunities.org/id/metropolitan-district-council/wolverhampton","701613","Arthur Brett (Catering) Limited","ID1054476","30.05","Provisions (Resale)","130230571","12/10/2018","Visitor Economy","Bantock - Tea Rooms","R4102"
"Wolverhampton City Council","http://opendatacommunities.org/id/metropolitan-district-council/wolverhampton","701613","Arthur Brett (Catering) Limited","ID1052122","39.38","Provisions (Resale)","130229961","05/10/2018","Older People Provider Services","Bradley Lodge Resource Centre","R4102"
"Wolverhampton City Council","http://opendatacommunities.org/id/metropolitan-district-council/wolverhampton","701613","Arthur Brett (Catering) Limited","ID1047567","27.28","Provisions (Resale)","130227915","03/10/2018","Older People Provider Services","Blakenhall Resource Centre","R4102"
"Wolverhampton City Council","http://opendatacommunities.org/id/metropolitan-district-council/wolverhampton","701613","Arthur Brett (Catering) Limited","ID1052144","52.48","Provisions (Resale)","130229464","03/10/2018","Visitor Economy","Art Gallery Tea Room","R4102"
"Wolverhampton City Council","http://opendatacommunities.org/id/metropolitan-district-council/wolverhampton","701613","Arthur Brett (Catering) Limited","ID1055683","78.59","Provisions (Resale)","130231072","17/10/2018","Visitor Economy","Bantock - Tea Rooms","R4102"
"Wolverhampton City Council","http://opendatacommunities.org/id/metropolitan-district-council/wolverhampton","701613","Arthur Brett (Catering) Limited","ID1057159","5.93","Provisions (Resale)","130231830","19/10/2018","Catering","West Park Tea Room","R4102"
"Wolverhampton City Council","http://opendatacommunities.org/id/metropolitan-district-council/wolverhampton","701613","Arthur Brett (Catering) Limited","3009183","48,313.41","Provisions (Resale)","130232512","26/10/2018","Catering","Education Catering - General Overheads","R4102"
"Wolverhampton City Council","http://opendatacommunities.org/id/metropolitan-district-council/wolverhampton","701613","Arthur Brett (Catering) Limited","ID1053732","20.97","Provisions (Resale)","130229963","10/10/2018","Older People Provider Services","Blakenhall Resource Centre","R4102"
"Wolverhampton City Council","http://opendatacommunities.org/id/metropolitan-district-council/wolverhampton","701613","Arthur Brett (Catering) Limited","ID1053951","113.77","Provisions (Resale)","130230150","10/10/2018","Visitor Economy","Bantock - Tea Rooms","R4102"
"Wolverhampton City Council","http://opendatacommunities.org/id/metropolitan-district-council/wolverhampton","701613","Arthur Brett (Catering) Limited","ID1052642","8.28","Provisions (Resale)","130229615","10/10/2018","Catering","West Park Tea Room","R4102"
"Wolverhampton City Council","http://opendatacommunities.org/id/metropolitan-district-council/wolverhampton","701613","Arthur Brett (Catering) Limited","ID1060215","113.54","Provisions (Resale)","130232734","31/10/2018","Visitor Economy","Bantock - Tea Rooms","R4102"
"Wolverhampton City Council","http://opendatacommunities.org/id/metropolitan-district-council/wolverhampton","701613","Arthur Brett (Catering) Limited","ID1056722","21.74","Provisions (Resale)","130231679","24/10/2018","Older People Provider Services","Blakenhall Resource Centre","R4102"
"Wolverhampton City Council","http://opendatacommunities.org/id/metropolitan-district-council/wolverhampton","701613","Arthur Brett (Catering) Limited","3009181","82.09","Provisions (Resale)","130231402","12/10/2018","Leisure Services","WV Active Catering","R4102"
"Wolverhampton City Council","http://opendatacommunities.org/id/metropolitan-district-council/wolverhampton","701613","Arthur Brett (Catering) Limited","ID1051632","89.07","Provisions (Resale)","130229364","03/10/2018","Visitor Economy","Bantock - Tea Rooms","R4102"
"Wolverhampton City Council","http://opendatacommunities.org/id/metropolitan-district-council/wolverhampton","701613","Arthur Brett (Catering) Limited","ID1052760","3.48","Provisions (Resale)","130229616","05/10/2018","Catering","West Park Tea Room","R4102"
"Wolverhampton City Council","http://opendatacommunities.org/id/metropolitan-district-council/wolverhampton","701613","Arthur Brett (Catering) Limited","ID1055226","20.34","Provisions (Resale)","130231071","17/10/2018","Older People Provider Services","Blakenhall Resource Centre","R4102"
"Wolverhampton City Council","http://opendatacommunities.org/id/metropolitan-district-council/wolverhampton","701613","Arthur Brett (Catering) Limited","ID1054084","116.14","Provisions (Resale)","130230316","10/10/2018","Visitor Economy","Art Gallery Tea Room","R4102"
"Wolverhampton City Council","http://opendatacommunities.org/id/metropolitan-district-council/wolverhampton","701613","Arthur Brett (Catering) Limited","3009184","1,319.82","Provisions (Resale)","130232513","26/10/2018","Catering","Civic Centre Catering","R4102"
"Wolverhampton City Council","http://opendatacommunities.org/id/metropolitan-district-council/wolverhampton","701613","Arthur Brett (Catering) Limited","ID1060148","111.00","Provisions (Resale)","130232733","31/10/2018","Visitor Economy","Art Gallery Tea Room","R4102"
"Wolverhampton City Council","http://opendatacommunities.org/id/metropolitan-district-council/wolverhampton","701613","Arthur Brett (Catering) Limited","ID1059664","14.30","Provisions (Resale)","130232311","31/10/2018","Visitor Economy","Art Gallery Tea Room","R4102"
"Wolverhampton City Council","http://opendatacommunities.org/id/metropolitan-district-council/wolverhampton","701613","Arthur Brett (Catering) Limited","ID1051530","18.59","Provisions (Resale)","130229363","12/10/2018","Older People Provider Services","Blakenhall Resource Centre","R4102"
"Wolverhampton City Council","http://opendatacommunities.org/id/metropolitan-district-council/wolverhampton","701613","Arthur Brett (Catering) Limited","ID1054859","92.50","Provisions (Resale)","130230572","12/10/2018","Visitor Economy","Bantock - Tea Rooms","R4102"
"Wolverhampton City Council","http://opendatacommunities.org/id/metropolitan-district-council/wolverhampton","701613","Arthur Brett (Catering) Limited","ID1058742","5.89","Provisions (Resale)","130232074","24/10/2018","Catering","West Park Tea Room","R4102"
"Wolverhampton City Council","http://opendatacommunities.org/id/metropolitan-district-council/wolverhampton","701613","Arthur Brett (Catering) Limited","ID1056163","57.89","Provisions (Resale)","130231073","17/10/2018","Visitor Economy","Bantock - Tea Rooms","R4102"
"Wolverhampton City Council","http://opendatacommunities.org/id/metropolitan-district-council/wolverhampton","701613","Arthur Brett (Catering) Limited","ID1053182","20.65","Provisions (Resale)","130229920","05/10/2018","Visitor Economy","Art Gallery Tea Room","R4102"
"Wolverhampton City Council","http://opendatacommunities.org/id/metropolitan-district-council/wolverhampton","701613","Arthur Brett (Catering) Limited","ID1052597","74.16","Provisions (Resale)","130229614","03/10/2018","Visitor Economy","Bantock - Tea Rooms","R4102"
"Wolverhampton City Council","http://opendatacommunities.org/id/metropolitan-district-council/wolverhampton","701613","Arthur Brett (Catering) Limited","ID1053218","101.09","Provisions (Resale)","130229962","05/10/2018","Visitor Economy","Bantock - Tea Rooms","R4102"
"Wolverhampton City Council","http://opendatacommunities.org/id/metropolitan-district-council/wolverhampton","701613","Arthur Brett (Catering) Limited","ID1053189","79.85","Provisions (Resale)","130230314","10/10/2018","Older People Provider Services","Bradley Lodge Resource Centre","R4102"
"Wolverhampton City Council","http://opendatacommunities.org/id/metropolitan-district-council/wolverhampton","701613","Arthur Brett (Catering) Limited","ID1058998","70.21","Provisions (Resale)","130232213","26/10/2018","Visitor Economy","Bantock - Tea Rooms","R4102"
"Wolverhampton City Council","http://opendatacommunities.org/id/metropolitan-district-council/wolverhampton","701613","Arthur Brett (Catering) Limited","ID1060295","10.83","Provisions (Resale)","130232735","31/10/2018","Catering","West Park Tea Room","R4102"
"Wolverhampton City Council","http://opendatacommunities.org/id/metropolitan-district-council/wolverhampton","701613","Arthur Brett (Catering) Limited","ID1058671","81.86","Provisions (Resale)","130232073","24/10/2018","Visitor Economy","Art Gallery Tea Room","R4102"
"Wolverhampton City Council","http://opendatacommunities.org/id/metropolitan-district-council/wolverhampton","701613","Arthur Brett (Catering) Limited","ID1055189","48.77","Provisions (Resale)","130230807","12/10/2018","Visitor Economy","Bantock - Tea Rooms","R4102"
"Wolverhampton City Council","http://opendatacommunities.org/id/metropolitan-district-council/wolverhampton","701613","Arthur Brett (Catering) Limited","ID1055117","92.78","Provisions (Resale)","130230806","12/10/2018","Visitor Economy","Art Gallery Tea Room","R4102"
"Wolverhampton City Council","http://opendatacommunities.org/id/metropolitan-district-council/wolverhampton","701613","Arthur Brett (Catering) Limited","ID1052542","36.92","Provisions (Resale)","130229613","03/10/2018","Visitor Economy","Art Gallery Tea Room","R4102"
"Wolverhampton City Council","http://opendatacommunities.org/id/metropolitan-district-council/wolverhampton","701613","Arthur Brett (Catering) Limited","ID1049555","25.88","Provisions (Resale)","130228660","03/10/2018","Older People Provider Services","Blakenhall Resource Centre","R4102"
"Wolverhampton City Council","http://opendatacommunities.org/id/metropolitan-district-council/wolverhampton","701613","Arthur Brett (Catering) Limited","ID1056386","76.76","Provisions (Resale)","130231245","17/10/2018","Visitor Economy","Art Gallery Tea Room","R4102"
"Wolverhampton City Council","http://opendatacommunities.org/id/metropolitan-district-council/wolverhampton","701626","Asan Management Services Limited","112358","75.00","Room Hire","130232961","31/10/2018","Public Service Reform","Workforce Development","R2201"
"Wolverhampton City Council","http://opendatacommunities.org/id/metropolitan-district-council/wolverhampton","701626","Asan Management Services Limited","112358","100.00","Catering","130232961","31/10/2018","Public Service Reform","Workforce Development","R4100"
"Wolverhampton City Council","http://opendatacommunities.org/id/metropolitan-district-council/wolverhampton","701656","Askews & Holts Library Services Limited","5823090","319.11","Books","130228522","10/10/2018","Local Economy","Global Budgets","R4309"
"Wolverhampton City Council","http://opendatacommunities.org/id/metropolitan-district-council/wolverhampton","701656","Askews & Holts Library Services Limited","5843222","390.32","Books","130230318","26/10/2018","Local Economy","Global Budgets","R4309"
"Wolverhampton City Council","http://opendatacommunities.org/id/metropolitan-district-council/wolverhampton","701656","Askews & Holts Library Services Limited","5850167","36.52","Books","130230973","31/10/2018","Local Economy","Global Budgets","R4309"
"Wolverhampton City Council","http://opendatacommunities.org/id/metropolitan-district-council/wolverhampton","701656","Askews & Holts Library Services Limited","5854246","127.82","Books","130230977","31/10/2018","Local Economy","Global Budgets","R4309"
"Wolverhampton City Council","http://opendatacommunities.org/id/metropolitan-district-council/wolverhampton","701656","Askews & Holts Library Services Limited","5827149","477.22","Books","130228997","12/10/2018","Local Economy","Global Budgets","R4309"
"Wolverhampton City Council","http://opendatacommunities.org/id/metropolitan-district-council/wolverhampton","701656","Askews & Holts Library Services Limited","5843777","220.29","Books","130229966","24/10/2018","Local Economy","Global Budgets","R4309"
"Wolverhampton City Council","http://opendatacommunities.org/id/metropolitan-district-council/wolverhampton","701656","Askews & Holts Library Services Limited","5836080","57.98","Books","130229252","17/10/2018","Local Economy","Global Budgets","R4309"
"Wolverhampton City Council","http://opendatacommunities.org/id/metropolitan-district-council/wolverhampton","701656","Askews & Holts Library Services Limited","5821276","166.58","Books","130227773","03/10/2018","Local Economy","Global Budgets","R4309"
"Wolverhampton City Council","http://opendatacommunities.org/id/metropolitan-district-council/wolverhampton","701656","Askews & Holts Library Services Limited","5843778","145.44","Books","130229253","17/10/2018","Local Economy","Global Budgets","R4309"
"Wolverhampton City Council","http://opendatacommunities.org/id/metropolitan-district-council/wolverhampton","701656","Askews & Holts Library Services Limited","5831059","109.64","Books","130229249","17/10/2018","Local Economy","Global Budgets","R4309"
"Wolverhampton City Council","http://opendatacommunities.org/id/metropolitan-district-council/wolverhampton","701656","Askews & Holts Library Services Limited","5823091","72.02","Books","130228523","10/10/2018","Local Economy","Global Budgets","R4309"
"Wolverhampton City Council","http://opendatacommunities.org/id/metropolitan-district-council/wolverhampton","701656","Askews & Holts Library Services Limited","5838010","462.71","Books","130229465","19/10/2018","Local Economy","Global Budgets","R4309"
"Wolverhampton City Council","http://opendatacommunities.org/id/metropolitan-district-council/wolverhampton","701656","Askews & Holts Library Services Limited","5847692","447.03","Books","130230319","26/10/2018","Local Economy","Global Budgets","R4309"
"Wolverhampton City Council","http://opendatacommunities.org/id/metropolitan-district-council/wolverhampton","701656","Askews & Holts Library Services Limited","5827148","456.73","Books","130228996","12/10/2018","Local Economy","Global Budgets","R4309"
"Wolverhampton City Council","http://opendatacommunities.org/id/metropolitan-district-council/wolverhampton","701656","Askews & Holts Library Services Limited","5845471","32.48","Books","130229967","24/10/2018","Local Economy","Global Budgets","R4309"
"Wolverhampton City Council","http://opendatacommunities.org/id/metropolitan-district-council/wolverhampton","701656","Askews & Holts Library Services Limited","5850197","105.46","Books","130230975","31/10/2018","Local Economy","Global Budgets","R4309"
"Wolverhampton City Council","http://opendatacommunities.org/id/metropolitan-district-council/wolverhampton","701656","Askews & Holts Library Services Limited","5856468","645.30","Books","130230978","31/10/2018","Local Economy","Global Budgets","R4309"
"Wolverhampton City Council","http://opendatacommunities.org/id/metropolitan-district-council/wolverhampton","701656","Askews & Holts Library Services Limited","5831060","129.95","Books","130229250","17/10/2018","Local Economy","Global Budgets","R4309"
"Wolverhampton City Council","http://opendatacommunities.org/id/metropolitan-district-council/wolverhampton","701656","Askews & Holts Library Services Limited","5831058","616.90","Books","130229248","17/10/2018","Local Economy","Global Budgets","R4309"
"Wolverhampton City Council","http://opendatacommunities.org/id/metropolitan-district-council/wolverhampton","701656","Askews & Holts Library Services Limited","5827163","402.79","Books","130228526","10/10/2018","Local Economy","Global Budgets","R4309"
"Wolverhampton City Council","http://opendatacommunities.org/id/metropolitan-district-council/wolverhampton","701656","Askews & Holts Library Services Limited","161320E","-11.45","Books","130228662","10/10/2018","Local Economy","Global Budgets","R4309"
"Wolverhampton City Council","http://opendatacommunities.org/id/metropolitan-district-council/wolverhampton","701656","Askews & Holts Library Services Limited","5850166","293.24","Books","130230972","31/10/2018","Local Economy","Global Budgets","R4309"
"Wolverhampton City Council","http://opendatacommunities.org/id/metropolitan-district-council/wolverhampton","701656","Askews & Holts Library Services Limited","5856469","351.42","Books","130230979","31/10/2018","Local Economy","Global Budgets","R4309"
"Wolverhampton City Council","http://opendatacommunities.org/id/metropolitan-district-council/wolverhampton","701656","Askews & Holts Library Services Limited","5837059","36.12","Books","130228998","12/10/2018","Local Economy","Global Budgets","R4309"
"Wolverhampton City Council","http://opendatacommunities.org/id/metropolitan-district-council/wolverhampton","701656","Askews & Holts Library Services Limited","5843776","575.60","Books","130229965","24/10/2018","Local Economy","Global Budgets","R4309"
"Wolverhampton City Council","http://opendatacommunities.org/id/metropolitan-district-council/wolverhampton","701656","Askews & Holts Library Services Limited","5821275","5.65","Books","130227772","03/10/2018","Local Economy","Global Budgets","R4309"
"Wolverhampton City Council","http://opendatacommunities.org/id/metropolitan-district-council/wolverhampton","701656","Askews & Holts Library Services Limited","5831061","135.94","Books","130229251","17/10/2018","Local Economy","Global Budgets","R4309"
"Wolverhampton City Council","http://opendatacommunities.org/id/metropolitan-district-council/wolverhampton","701656","Askews & Holts Library Services Limited","5843221","6.23","Books","130230317","26/10/2018","Local Economy","Global Budgets","R4309"
"Wolverhampton City Council","http://opendatacommunities.org/id/metropolitan-district-council/wolverhampton","701656","Askews & Holts Library Services Limited","5823227","165.52","Books","130228524","10/10/2018","Local Economy","Global Budgets","R4309"
"Wolverhampton City Council","http://opendatacommunities.org/id/metropolitan-district-council/wolverhampton","701656","Askews & Holts Library Services Limited","5823228","4.43","Books","130228525","10/10/2018","Local Economy","Global Budgets","R4309"
"Wolverhampton City Council","http://opendatacommunities.org/id/metropolitan-district-council/wolverhampton","701656","Askews & Holts Library Services Limited","5843775","7.97","Books","130229964","24/10/2018","Local Economy","Global Budgets","R4309"
"Wolverhampton City Council","http://opendatacommunities.org/id/metropolitan-district-council/wolverhampton","701656","Askews & Holts Library Services Limited","5850196","6.14","Books","130230974","31/10/2018","Local Economy","Global Budgets","R4309"
"Wolverhampton City Council","http://opendatacommunities.org/id/metropolitan-district-council/wolverhampton","701656","Askews & Holts Library Services Limited","5850196","26.90","Books","130230974","31/10/2018","Local Economy","Global Budgets","R4309"
"Wolverhampton City Council","http://opendatacommunities.org/id/metropolitan-district-council/wolverhampton","701656","Askews & Holts Library Services Limited","5850196","36.25","Books","130230974","31/10/2018","Local Economy","Global Budgets","R4309"
"Wolverhampton City Council","http://opendatacommunities.org/id/metropolitan-district-council/wolverhampton","701656","Askews & Holts Library Services Limited","5854245","505.93","Books","130230976","31/10/2018","Local Economy","Global Budgets","R4309"
"Wolverhampton City Council","http://opendatacommunities.org/id/metropolitan-district-council/wolverhampton","701680","Associated  Radio Taxi�s","ART-18-0001","1,115.28","Client Transport","130230808","10/10/2018","Special Educational Needs","Secondary- Transport","R3042"
"Wolverhampton City Council","http://opendatacommunities.org/id/metropolitan-district-council/wolverhampton","701680","Associated  Radio Taxi�s","ART-18-0005","967.05","Client Transport","130230812","10/10/2018","Special Educational Needs","Secondary- Transport","R3042"
"Wolverhampton City Council","http://opendatacommunities.org/id/metropolitan-district-council/wolverhampton","701680","Associated  Radio Taxi�s","ART-18-0007","661.60","Client Transport","130231843","19/10/2018","Special Educational Needs","Special - Transport","R3042"
"Wolverhampton City Council","http://opendatacommunities.org/id/metropolitan-district-council/wolverhampton","701680","Associated  Radio Taxi�s","ART-18-0003","973.10","Client Transport","130230810","10/10/2018","Special Educational Needs","Special - Transport","R3042"
"Wolverhampton City Council","http://opendatacommunities.org/id/metropolitan-district-council/wolverhampton","701680","Associated  Radio Taxi�s","ART-18-0002","1,138.49","Client Transport","130230809","10/10/2018","Special Educational Needs","Primary - Transport","R3042"
"Wolverhampton City Council","http://opendatacommunities.org/id/metropolitan-district-council/wolverhampton","701680","Associated  Radio Taxi�s","INV93","12.20","Client Transport","130230814","10/10/2018","Adults Assessment & Care Management North","Adult Services � North","R3042"
"Wolverhampton City Council","http://opendatacommunities.org/id/metropolitan-district-council/wolverhampton","701680","Associated  Radio Taxi�s","ART-18-0004","988.50","Client Transport","130230811","10/10/2018","Special Educational Needs","Special - Transport","R3042"
"Wolverhampton City Council","http://opendatacommunities.org/id/metropolitan-district-council/wolverhampton","701680","Associated  Radio Taxi�s","ART-18-0008","1,076.20","Client Transport","130230573","10/10/2018","Special Educational Needs","Special - Transport","R3042"
"Wolverhampton City Council","http://opendatacommunities.org/id/metropolitan-district-council/wolverhampton","701680","Associated  Radio Taxi�s","ART-18-0006","855.00","Client Transport","130230813","10/10/2018","Special Educational Needs","Secondary- Transport","R3042"
"Wolverhampton City Council","http://opendatacommunities.org/id/metropolitan-district-council/wolverhampton","701706","Auger Contracts Limited","6868","3,170.00","Construction and Conversion","130229617","24/10/2018","","Capital Maintenance - Structural Works","C1100"
"Wolverhampton City Council","http://opendatacommunities.org/id/metropolitan-district-council/wolverhampton","701706","Auger Contracts Limited","6869","9,657.00","Construction and Conversion","130229618","24/10/2018","","Capital Maintenance - Structural Works","C1100"
"Wolverhampton City Council","http://opendatacommunities.org/id/metropolitan-district-council/wolverhampton","701707","Aurora Graphics & Displays Limited","60164","1,649.20","Printing","130231246","19/10/2018","ICTS","Document Centre - General","R4300"
"Wolverhampton City Council","http://opendatacommunities.org/id/metropolitan-district-council/wolverhampton","701727","Avery Weigh-Tronix","CNN/10438733","1,395.98","Equipment - Hire","130229254","03/10/2018","Highways Maintenance","Winter Maintenance","R4001"
"Wolverhampton City Council","http://opendatacommunities.org/id/metropolitan-district-council/wolverhampton","701738","Axiell ALM Limited","806321","2,711.40","Equipment - R & M","130229968","03/10/2018","Visitor Economy","Archives","R4003"
"Wolverhampton City Council","http://opendatacommunities.org/id/metropolitan-district-council/wolverhampton","701738","Axiell ALM Limited","806322","1,991.64","Subscriptions","130231074","10/10/2018","Visitor Economy","Art Gallery","R4701"
"Wolverhampton City Council","http://opendatacommunities.org/id/metropolitan-district-council/wolverhampton","701739","Axiom Building Solutions","06091","295.00","R&M - Departmental planned (external)","130231076","12/10/2018","School Planning & Resources","Other Support Services","R2001"
"Wolverhampton City Council","http://opendatacommunities.org/id/metropolitan-district-council/wolverhampton","701739","Axiom Building Solutions","06281","425.00","R&M - Departmental planned (external)","130231404","24/10/2018","Corporate Asset Management","Statutory Surveys","R2001"
"Wolverhampton City Council","http://opendatacommunities.org/id/metropolitan-district-council/wolverhampton","701739","Axiom Building Solutions","05709","2,975.00","R&M - Departmental planned (external)","130231075","12/10/2018","Corporate Asset Management","Statutory Surveys","R2001"
"Wolverhampton City Council","http://opendatacommunities.org/id/metropolitan-district-council/wolverhampton","701739","Axiom Building Solutions","04502","85.00","R&M - Departmental planned (external)","130232531","24/10/2018","Corporate Asset Management","Statutory Surveys","R2001"
"Wolverhampton City Council","http://opendatacommunities.org/id/metropolitan-district-council/wolverhampton","701771","Back Care Solutions Limited","64906","80.00","Adaptations","130229619","17/10/2018","Adults Assessment & Care Management North","Adult Services � North","R4411"
"Wolverhampton City Council","http://opendatacommunities.org/id/metropolitan-district-council/wolverhampton","701771","Back Care Solutions Limited","64579","662.00","Furniture","130228527","03/10/2018","Facilities Management","Civic Centre","R4004"
"Wolverhampton City Council","http://opendatacommunities.org/id/metropolitan-district-council/wolverhampton","701771","Back Care Solutions Limited","64579","69.00","Furniture","130228527","03/10/2018","Facilities Management","Civic Centre","R4004"
"Wolverhampton City Council","http://opendatacommunities.org/id/metropolitan-district-council/wolverhampton","701784","Bains Supersave Limited","APNEWS054","47.70","Books","130231844","17/10/2018","Local Economy","Global Budgets","R4309"
"Wolverhampton City Council","http://opendatacommunities.org/id/metropolitan-district-council/wolverhampton","701787","Baker Hall Limited","WV/09/18","1,400.00","Services - Consultants","130230815","24/10/2018","Planning","Building Consultancy","R4404"
"Wolverhampton City Council","http://opendatacommunities.org/id/metropolitan-district-council/wolverhampton","701817","Base 25","3649","360.00","TPP - Social Care Support Services","130230816","31/10/2018","Child Protection","CIN/CP Social Work Unit - Area 5","R5501"
"Wolverhampton City Council","http://opendatacommunities.org/id/metropolitan-district-council/wolverhampton","701832","Bbp.Security Services & Training Limited","334WCC191018","5,653.13","Services - Security","130232541","26/10/2018","Facilities Management","Hickman Avenue Depot","R4405"
"Wolverhampton City Council","http://opendatacommunities.org/id/metropolitan-district-council/wolverhampton","701832","Bbp.Security Services & Training Limited","335WCC191018","1,884.00","Services - Security","130232542","26/10/2018","Facilities Management","Caretakers Supply Pool","R4405"
"Wolverhampton City Council","http://opendatacommunities.org/id/metropolitan-district-council/wolverhampton","701832","Bbp.Security Services & Training Limited","328WCC151018","220.00","Services - Security","130232535","24/10/2018","Maintenance Programme","Asset Management Team","R4405"
"Wolverhampton City Council","http://opendatacommunities.org/id/metropolitan-district-council/wolverhampton","701832","Bbp.Security Services & Training Limited","329WCC151018","440.00","Services - Security","130232536","24/10/2018","Maintenance Programme","Asset Management Team","R4405"
"Wolverhampton City Council","http://opendatacommunities.org/id/metropolitan-district-council/wolverhampton","701832","Bbp.Security Services & Training Limited","323WCC111018","115.00","Services - Security","130231562","17/10/2018","Skills","Work Box","R4405"
"Wolverhampton City Council","http://opendatacommunities.org/id/metropolitan-district-council/wolverhampton","701832","Bbp.Security Services & Training Limited","336WCC191018","1,610.00","Services - Security","130232543","26/10/2018","Bereavement Services","Cemeteries","R4405"
"Wolverhampton City Council","http://opendatacommunities.org/id/metropolitan-district-council/wolverhampton","701832","Bbp.Security Services & Training Limited","333WCC191018","5,187.00","Services - Security","130232540","26/10/2018","Facilities Management","Parkfields Office Accomodation","R4405"
"Wolverhampton City Council","http://opendatacommunities.org/id/metropolitan-district-council/wolverhampton","701832","Bbp.Security Services & Training Limited","324WCC111018","5,992.00","Services - Security","130231563","24/10/2018","Cleaning","Cleaning of Buildings - General","R4405"
"Wolverhampton City Council","http://opendatacommunities.org/id/metropolitan-district-council/wolverhampton","701832","Bbp.Security Services & Training Limited","147CIV231018OE","1,055.31","Services - Professional Fees","130233043","31/10/2018","Visitor Economy","Diwali","R4400"
"Wolverhampton City Council","http://opendatacommunities.org/id/metropolitan-district-council/wolverhampton","701832","Bbp.Security Services & Training Limited","322WCC111018","484.00","Services - Security","130231561","17/10/2018","Looked After Children","Head of Service - LAC","R4405"
"Wolverhampton City Council","http://opendatacommunities.org/id/metropolitan-district-council/wolverhampton","701832","Bbp.Security Services & Training Limited","318WCC260918","260.00","Services - Security","130229776","03/10/2018","Maintenance Programme","Asset Management Team","R4405"
"Wolverhampton City Council","http://opendatacommunities.org/id/metropolitan-district-council/wolverhampton","701832","Bbp.Security Services & Training Limited","321WCC280918","898.00","Services - Security","130229970","05/10/2018","Early Intervention","EIP Locality 2 � Bilston/Rocket Pool","R4405"
"Wolverhampton City Council","http://opendatacommunities.org/id/metropolitan-district-council/wolverhampton","701832","Bbp.Security Services & Training Limited","319WCC260918","484.00","Services - Security","130229777","03/10/2018","Maintenance Programme","Asset Management Team","R4405"
"Wolverhampton City Council","http://opendatacommunities.org/id/metropolitan-district-council/wolverhampton","701832","Bbp.Security Services & Training Limited","320WCC280918","6,880.00","Services - Security","130229969","10/10/2018","Facilities Management","Management of Vacant Properties","R4405"
"Wolverhampton City Council","http://opendatacommunities.org/id/metropolitan-district-council/wolverhampton","701832","Bbp.Security Services & Training Limited","332WCC191018","2,100.00","Services - Security","130232539","26/10/2018","Facilities Management","i10 Facilities Management","R4405"
"Wolverhampton City Council","http://opendatacommunities.org/id/metropolitan-district-council/wolverhampton","701832","Bbp.Security Services & Training Limited","330WCC151018","6,251.00","Services - Security","130232537","24/10/2018","Markets","Wolverhampton Indoor and Open Market","R4405"
"Wolverhampton City Council","http://opendatacommunities.org/id/metropolitan-district-council/wolverhampton","701832","Bbp.Security Services & Training Limited","327WCC151018","363.00","Services - Security","130232534","24/10/2018","Looked After Children","Head of Service - LAC","R4405"
"Wolverhampton City Council","http://opendatacommunities.org/id/metropolitan-district-council/wolverhampton","701832","Bbp.Security Services & Training Limited","317WCC260918","5,822.25","Services - Security","130229775","03/10/2018","Maintenance Programme","Asset Management Team","R4405"
"Wolverhampton City Council","http://opendatacommunities.org/id/metropolitan-district-council/wolverhampton","701832","Bbp.Security Services & Training Limited","331WCC191018","1,800.75","Services - Security","130232538","26/10/2018","Facilities Management","Civic Centre","R4405"
"Wolverhampton City Council","http://opendatacommunities.org/id/metropolitan-district-council/wolverhampton","701832","Bbp.Security Services & Training Limited","326WCC111018","5,467.50","Services - Security","130231564","24/10/2018","Licensing","Private Hire Vehicles","R4405"
"Wolverhampton City Council","http://opendatacommunities.org/id/metropolitan-district-council/wolverhampton","701832","Bbp.Security Services & Training Limited","337WCC231018","10,258.50","Services - Security","130233044","31/10/2018","Licensing","Private Hire Vehicles","R4405"
"Wolverhampton City Council","http://opendatacommunities.org/id/metropolitan-district-council/wolverhampton","701867","Believe To Achieve Limited","13502","25,545.78","Services - Professional Fees","130232802","31/10/2018","Community Safety","SWP - Gangs","R4400"
"Wolverhampton City Council","http://opendatacommunities.org/id/metropolitan-district-council/wolverhampton","701867","Believe To Achieve Limited","13495","30.00","Grant Payments","130230817","10/10/2018","Early Intervention","EIP Locality 6 � Dovecotes","R4700"
"Wolverhampton City Council","http://opendatacommunities.org/id/metropolitan-district-council/wolverhampton","701867","Believe To Achieve Limited","13483","90.00","Services - Professional Fees","130229621","03/10/2018","Early Intervention","EIP Locality 1 - Eastfields","R4400"
"Wolverhampton City Council","http://opendatacommunities.org/id/metropolitan-district-council/wolverhampton","701867","Believe To Achieve Limited","13503","90.00","Services - Professional Fees","130232736","31/10/2018","Early Intervention","EIP Locality 1 - Eastfields","R4400"
"Wolverhampton City Council","http://opendatacommunities.org/id/metropolitan-district-council/wolverhampton","701880","Berendsen UK Limited","SN2933371","192.52","Protective Clothing","190513909","05/10/2018","Fleet Services","Fleet Management","R4200"
"Wolverhampton City Council","http://opendatacommunities.org/id/metropolitan-district-council/wolverhampton","701885","Berrymans Lace Mawer","2351618","1,400.00","Insurance - General","130214389","26/10/2018","Audit Services","Legal Liability","R4962"
"Wolverhampton City Council","http://opendatacommunities.org/id/metropolitan-district-council/wolverhampton","701885","Berrymans Lace Mawer","2408035","1,104.00","Insurance - General","130223531","03/10/2018","Audit Services","Legal Liability","R4962"
"Wolverhampton City Council","http://opendatacommunities.org/id/metropolitan-district-council/wolverhampton","701885","Berrymans Lace Mawer","2408035","276.00","Insurance - General","130223531","03/10/2018","Audit Services","Legal Liability","R4962"
"Wolverhampton City Council","http://opendatacommunities.org/id/metropolitan-district-council/wolverhampton","701907","Beverages Direct Limited","695773","424.27","Provisions (Resale)","130229365","10/10/2018","Catering","Education Catering - General Overheads","R4102"
"Wolverhampton City Council","http://opendatacommunities.org/id/metropolitan-district-council/wolverhampton","701907","Beverages Direct Limited","696261","581.47","Provisions (Resale)","130229778","12/10/2018","Catering","Education Catering - General Overheads","R4102"
"Wolverhampton City Council","http://opendatacommunities.org/id/metropolitan-district-council/wolverhampton","701925","Bild","38276","1,025.00","Training Expenses","130231848","19/10/2018","Public Service Reform","Workforce Development","R1650"
"Wolverhampton City Council","http://opendatacommunities.org/id/metropolitan-district-council/wolverhampton","701930","Bilston Resource Centre","UC006","7,389.90","Training Expenses","130231079","31/10/2018","Local Economy","Universal Credit","R1650"
"Wolverhampton City Council","http://opendatacommunities.org/id/metropolitan-district-council/wolverhampton","701963","Black Country Consortium Limited","1917","47,750.00","Services - Professional Fees","130229623","10/10/2018","Land and Property Investment Support","Land Property Investment Fund Management Costs","R4400"
"Wolverhampton City Council","http://opendatacommunities.org/id/metropolitan-district-council/wolverhampton","701968","Black Country Partnership NHS Ft","3100001007","38,884.87","TPP - Social Care Support Services","130230574","31/10/2018","Service Director Children & Young People","Child & Adolescent Mental Health Service","R5501"
"Wolverhampton City Council","http://opendatacommunities.org/id/metropolitan-district-council/wolverhampton","701968","Black Country Partnership NHS Ft","1200000010","-14,781.25","TPP - Social Care Support Services","130231811","31/10/2018","Service Director Children & Young People","Child & Adolescent Mental Health Service","R5501"
"Wolverhampton City Council","http://opendatacommunities.org/id/metropolitan-district-council/wolverhampton","701996","Blue Group Interntl Limited T/A Bluecare","HSOC5715241","1,369.00","Agency Staff","130230347","26/10/2018","Child Protection","MASH","R1100"
"Wolverhampton City Council","http://opendatacommunities.org/id/metropolitan-district-council/wolverhampton","701996","Blue Group Interntl Limited T/A Bluecare","HSOC5707898","1,369.00","Agency Staff","130230334","10/10/2018","Child Protection","MASH","R1100"
"Wolverhampton City Council","http://opendatacommunities.org/id/metropolitan-district-council/wolverhampton","701996","Blue Group Interntl Limited T/A Bluecare","HSOC5706742","16.00","Agency Staff","130230331","10/10/2018","Child Protection","MASH","R1100"
"Wolverhampton City Council","http://opendatacommunities.org/id/metropolitan-district-council/wolverhampton","701996","Blue Group Interntl Limited T/A Bluecare","HSOC5711361","1,369.00","Agency Staff","130230341","10/10/2018","Child Protection","MASH","R1100"
"Wolverhampton City Council","http://opendatacommunities.org/id/metropolitan-district-council/wolverhampton","701996","Blue Group Interntl Limited T/A Bluecare","HSOC5701551","1,369.00","Agency Staff","130230322","10/10/2018","Child Protection","MASH","R1100"
"Wolverhampton City Council","http://opendatacommunities.org/id/metropolitan-district-council/wolverhampton","701996","Blue Group Interntl Limited T/A Bluecare","HSOC5712116","2.25","Agency Staff","130230343","10/10/2018","Child Protection","MASH","R1100"
"Wolverhampton City Council","http://opendatacommunities.org/id/metropolitan-district-council/wolverhampton","701996","Blue Group Interntl Limited T/A Bluecare","HSOC5704215","20.25","Agency Staff","130230325","10/10/2018","Child Protection","MASH","R1100"
"Wolverhampton City Council","http://opendatacommunities.org/id/metropolitan-district-council/wolverhampton","701996","Blue Group Interntl Limited T/A Bluecare","HSOC5713615","1,369.00","Agency Staff","130230346","12/10/2018","Child Protection","MASH","R1100"
"Wolverhampton City Council","http://opendatacommunities.org/id/metropolitan-district-council/wolverhampton","701996","Blue Group Interntl Limited T/A Bluecare","HSOC5708756","1,369.00","Agency Staff","130230336","10/10/2018","Child Protection","MASH","R1100"
"Wolverhampton City Council","http://opendatacommunities.org/id/metropolitan-district-council/wolverhampton","701996","Blue Group Interntl Limited T/A Bluecare","HSOC5705203","1,369.00","Agency Staff","130230328","10/10/2018","Child Protection","MASH","R1100"
"Wolverhampton City Council","http://opendatacommunities.org/id/metropolitan-district-council/wolverhampton","701996","Blue Group Interntl Limited T/A Bluecare","HSOC5712845","1,369.00","Agency Staff","130230575","10/10/2018","Child Protection","MASH","R1100"
"Wolverhampton City Council","http://opendatacommunities.org/id/metropolitan-district-council/wolverhampton","701996","Blue Group Interntl Limited T/A Bluecare","HSOC5700631","1,091.50","Agency Staff","130230321","10/10/2018","Child Protection","MASH","R1100"
"Wolverhampton City Council","http://opendatacommunities.org/id/metropolitan-district-council/wolverhampton","701996","Blue Group Interntl Limited T/A Bluecare","HSOC5702400","1,369.00","Agency Staff","130230324","10/10/2018","Child Protection","MASH","R1100"
"Wolverhampton City Council","http://opendatacommunities.org/id/metropolitan-district-council/wolverhampton","701996","Blue Group Interntl Limited T/A Bluecare","HSOC5711362","11.70","Agency Staff","130230342","10/10/2018","Child Protection","MASH","R1100"
"Wolverhampton City Council","http://opendatacommunities.org/id/metropolitan-district-council/wolverhampton","701996","Blue Group Interntl Limited T/A Bluecare","HSOC5710442","22.95","Agency Staff","130230340","10/10/2018","Child Protection","MASH","R1100"
"Wolverhampton City Council","http://opendatacommunities.org/id/metropolitan-district-council/wolverhampton","701996","Blue Group Interntl Limited T/A Bluecare","HSOC5715241RE-ISSUE","1,369.00","Agency Staff","130230348","01/10/2018","Child Protection","MASH","R1100"
"Wolverhampton City Council","http://opendatacommunities.org/id/metropolitan-district-council/wolverhampton","701996","Blue Group Interntl Limited T/A Bluecare","HSOC5715843","1,110.00","Agency Staff","130231080","31/10/2018","Child Protection","MASH","R1100"
"Wolverhampton City Council","http://opendatacommunities.org/id/metropolitan-district-council/wolverhampton","701996","Blue Group Interntl Limited T/A Bluecare","HSOC5715242RE-ISSUE","12.60","Agency Staff","130230350","01/10/2018","Child Protection","MASH","R1100"
"Wolverhampton City Council","http://opendatacommunities.org/id/metropolitan-district-council/wolverhampton","701996","Blue Group Interntl Limited T/A Bluecare","HSOC5712846","22.05","Agency Staff","130230345","10/10/2018","Child Protection","MASH","R1100"
"Wolverhampton City Council","http://opendatacommunities.org/id/metropolitan-district-council/wolverhampton","701996","Blue Group Interntl Limited T/A Bluecare","HSOC5704216","814.00","Agency Staff","130230326","10/10/2018","Child Protection","MASH","R1100"
"Wolverhampton City Council","http://opendatacommunities.org/id/metropolitan-district-council/wolverhampton","701996","Blue Group Interntl Limited T/A Bluecare","HSOC5709670","18.45","Agency Staff","130230337","10/10/2018","Child Protection","MASH","R1100"
"Wolverhampton City Council","http://opendatacommunities.org/id/metropolitan-district-council/wolverhampton","701996","Blue Group Interntl Limited T/A Bluecare","HSOC5714358","1,369.00","Agency Staff","130230578","19/10/2018","Child Protection","MASH","R1100"
"Wolverhampton City Council","http://opendatacommunities.org/id/metropolitan-district-council/wolverhampton","701996","Blue Group Interntl Limited T/A Bluecare","HSOC5715242","12.60","Agency Staff","130230349","26/10/2018","Child Protection","MASH","R1100"
"Wolverhampton City Council","http://opendatacommunities.org/id/metropolitan-district-council/wolverhampton","701996","Blue Group Interntl Limited T/A Bluecare","HSOC5705202","27.00","Agency Staff","130230327","10/10/2018","Child Protection","MASH","R1100"
"Wolverhampton City Council","http://opendatacommunities.org/id/metropolitan-district-council/wolverhampton","701996","Blue Group Interntl Limited T/A Bluecare","HSOC5708511","16.20","Agency Staff","130230335","10/10/2018","Child Protection","MASH","R1100"
"Wolverhampton City Council","http://opendatacommunities.org/id/metropolitan-district-council/wolverhampton","701996","Blue Group Interntl Limited T/A Bluecare","HSOC5706959","1,369.00","Agency Staff","130230332","10/10/2018","Child Protection","MASH","R1100"
"Wolverhampton City Council","http://opendatacommunities.org/id/metropolitan-district-council/wolverhampton","701996","Blue Group Interntl Limited T/A Bluecare","HSOC5710441","1,369.00","Agency Staff","130230339","10/10/2018","Child Protection","MASH","R1100"
"Wolverhampton City Council","http://opendatacommunities.org/id/metropolitan-district-council/wolverhampton","701996","Blue Group Interntl Limited T/A Bluecare","HSOC5713616","10.35","Agency Staff","130230576","12/10/2018","Child Protection","MASH","R1100"
"Wolverhampton City Council","http://opendatacommunities.org/id/metropolitan-district-council/wolverhampton","701996","Blue Group Interntl Limited T/A Bluecare","HSOC5714173","9.00","Agency Staff","130230577","17/10/2018","Child Protection","MASH","R1100"
"Wolverhampton City Council","http://opendatacommunities.org/id/metropolitan-district-council/wolverhampton","701996","Blue Group Interntl Limited T/A Bluecare","HSOC5696870","19.95","Agency Staff","130230320","10/10/2018","Child Protection","MASH","R1100"
"Wolverhampton City Council","http://opendatacommunities.org/id/metropolitan-district-council/wolverhampton","701996","Blue Group Interntl Limited T/A Bluecare","HSOC5702217","22.50","Agency Staff","130230323","10/10/2018","Child Protection","MASH","R1100"
"Wolverhampton City Council","http://opendatacommunities.org/id/metropolitan-district-council/wolverhampton","701996","Blue Group Interntl Limited T/A Bluecare","HSOC5707897","12.60","Agency Staff","130230333","10/10/2018","Child Protection","MASH","R1100"
"Wolverhampton City Council","http://opendatacommunities.org/id/metropolitan-district-council/wolverhampton","701996","Blue Group Interntl Limited T/A Bluecare","HSOC5709671","1,369.00","Agency Staff","130230338","10/10/2018","Child Protection","MASH","R1100"
"Wolverhampton City Council","http://opendatacommunities.org/id/metropolitan-district-council/wolverhampton","701996","Blue Group Interntl Limited T/A Bluecare","HSOC5706054","13.05","Agency Staff","130230330","10/10/2018","Child Protection","MASH","R1100"
"Wolverhampton City Council","http://opendatacommunities.org/id/metropolitan-district-council/wolverhampton","701996","Blue Group Interntl Limited T/A Bluecare","HSOC5706053","1,369.00","Agency Staff","130230329","10/10/2018","Child Protection","MASH","R1100"
"Wolverhampton City Council","http://opendatacommunities.org/id/metropolitan-district-council/wolverhampton","701996","Blue Group Interntl Limited T/A Bluecare","HSOC5712117","1,091.50","Agency Staff","130230344","10/10/2018","Child Protection","MASH","R1100"
"Wolverhampton City Council","http://opendatacommunities.org/id/metropolitan-district-council/wolverhampton","701996","Blue Group Interntl Limited T/A Bluecare","HSOC5715844","5.85","Agency Staff","130231081","31/10/2018","Child Protection","MASH","R1100"
"Wolverhampton City Council","http://opendatacommunities.org/id/metropolitan-district-council/wolverhampton","702015","Boc Limited","3049187869","95.25","Rent","130230351","24/10/2018","Visitor Economy","The Little Civic","R2200"
"Wolverhampton City Council","http://opendatacommunities.org/id/metropolitan-district-council/wolverhampton","702041","Boulton Travel Limited","BTWCBM334","1,710.00","Client Transport","130230154","24/10/2018","Special Educational Needs","Special - Transport","R3042"
"Wolverhampton City Council","http://opendatacommunities.org/id/metropolitan-district-council/wolverhampton","702041","Boulton Travel Limited","BTWCGPT3.9","1,530.00","Client Transport","130230353","24/10/2018","Special Educational Needs","Special - Transport","R3042"
"Wolverhampton City Council","http://opendatacommunities.org/id/metropolitan-district-council/wolverhampton","702041","Boulton Travel Limited","BTHS38","100.00","Client Transport","130230352","24/10/2018","Headstart","B-Safe","R3042"
"Wolverhampton City Council","http://opendatacommunities.org/id/metropolitan-district-council/wolverhampton","702041","Boulton Travel Limited","BTWCBM434","1,710.00","Client Transport","130230155","24/10/2018","Special Educational Needs","Special - Transport","R3042"
"Wolverhampton City Council","http://opendatacommunities.org/id/metropolitan-district-council/wolverhampton","702041","Boulton Travel Limited","BTWCTW12.12","2,340.00","Client Transport","130230354","24/10/2018","Special Educational Needs","Special - Transport","R3042"
"Wolverhampton City Council","http://opendatacommunities.org/id/metropolitan-district-council/wolverhampton","702041","Boulton Travel Limited","BTWCBM5.34","1,710.00","Client Transport","130230818","24/10/2018","Special Educational Needs","Special - Transport","R3042"
"Wolverhampton City Council","http://opendatacommunities.org/id/metropolitan-district-council/wolverhampton","702041","Boulton Travel Limited","BTWCTW13.8","1,710.00","Client Transport","130230819","24/10/2018","Special Educational Needs","Special - Transport","R3042"
"Wolverhampton City Council","http://opendatacommunities.org/id/metropolitan-district-council/wolverhampton","702041","Boulton Travel Limited","BTWCBM134","1,773.00","Client Transport","130230153","24/10/2018","Special Educational Needs","Special - Transport","R3042"
"Wolverhampton City Council","http://opendatacommunities.org/id/metropolitan-district-council/wolverhampton","702046","Bourne Leisure Limited","BR00278321","269.13","TPP - Short Breaks","130231361","12/10/2018","Carer Support","Carers Support","R5500"
"Wolverhampton City Council","http://opendatacommunities.org/id/metropolitan-district-council/wolverhampton","702046","Bourne Leisure Limited","BR00276781","54.17","TPP - Short Breaks","130231362","12/10/2018","Carer Support","Carers Support","R5500"
"Wolverhampton City Council","http://opendatacommunities.org/id/metropolitan-district-council/wolverhampton","702064","Brady Corporation Ltd(Seton)","9302843420","307.45","Materials","190511839","03/10/2018","Fleet Services","Fleet Management","R4007"
"Wolverhampton City Council","http://opendatacommunities.org/id/metropolitan-district-council/wolverhampton","702071","Brakes/Brakefresh","9269337928","213.52","Provisions (Resale)","130223539","05/10/2018","Catering","Civic Centre Catering","R4102"
"Wolverhampton City Council","http://opendatacommunities.org/id/metropolitan-district-council/wolverhampton","702071","Brakes/Brakefresh","5505846128","-57.09","Provisions (Resale)","130231082","17/10/2018","Catering","Civic Centre Catering","R4102"
"Wolverhampton City Council","http://opendatacommunities.org/id/metropolitan-district-council/wolverhampton","702071","Brakes/Brakefresh","81758845","222.71","Provisions (Resale)","130230356","10/10/2018","Catering","Civic Centre Catering","R4102"
"Wolverhampton City Council","http://opendatacommunities.org/id/metropolitan-district-council/wolverhampton","702071","Brakes/Brakefresh","9269518891","44.65","Provisions (Resale)","130231084","31/10/2018","Catering","Civic Centre Catering","R4102"
"Wolverhampton City Council","http://opendatacommunities.org/id/metropolitan-district-council/wolverhampton","702071","Brakes/Brakefresh","5505884732","-27.64","Provisions (Resale)","130232081","31/10/2018","Catering","Civic Centre Catering","R4102"
"Wolverhampton City Council","http://opendatacommunities.org/id/metropolitan-district-council/wolverhampton","702071","Brakes/Brakefresh","5505868118","-18.00","Provisions (Resale)","130229366","10/10/2018","Catering","Civic Centre Catering","R4102"
"Wolverhampton City Council","http://opendatacommunities.org/id/metropolitan-district-council/wolverhampton","702071","Brakes/Brakefresh","9269531058","371.78","Provisions (Resale)","130231979","31/10/2018","Catering","Civic Centre Catering","R4102"
"Wolverhampton City Council","http://opendatacommunities.org/id/metropolitan-district-council/wolverhampton","702071","Brakes/Brakefresh","9269485981","348.83","Provisions (Resale)","130229369","05/10/2018","Catering","Civic Centre Catering","R4102"
"Wolverhampton City Council","http://opendatacommunities.org/id/metropolitan-district-council/wolverhampton","702071","Brakes/Brakefresh","9269502638","269.99","Provisions (Resale)","130229371","17/10/2018","Catering","Civic Centre Catering","R4102"
"Wolverhampton City Council","http://opendatacommunities.org/id/metropolitan-district-council/wolverhampton","702071","Brakes/Brakefresh","9269490516","314.19","Provisions (Resale)","130229370","10/10/2018","Catering","Civic Centre Catering","R4102"
"Wolverhampton City Council","http://opendatacommunities.org/id/metropolitan-district-council/wolverhampton","702071","Brakes/Brakefresh","7269005911","-27.48","Provisions (Resale)","130232082","31/10/2018","Catering","Civic Centre Catering","R4102"
"Wolverhampton City Council","http://opendatacommunities.org/id/metropolitan-district-council/wolverhampton","702071","Brakes/Brakefresh","9269378968","514.12","Provisions (Resale)","130224221","05/10/2018","Catering","Civic Centre Catering","R4102"
"Wolverhampton City Council","http://opendatacommunities.org/id/metropolitan-district-council/wolverhampton","702071","Brakes/Brakefresh","81670069","532.56","Provisions (Resale)","130230355","10/10/2018","Catering","Civic Centre Catering","R4102"
"Wolverhampton City Council","http://opendatacommunities.org/id/metropolitan-district-council/wolverhampton","702071","Brakes/Brakefresh","9269354558","45.96","Provisions (Resale)","130230357","10/10/2018","Catering","Civic Centre Catering","R4102"
"Wolverhampton City Council","http://opendatacommunities.org/id/metropolitan-district-council/wolverhampton","702071","Brakes/Brakefresh","5505876588","-20.63","Provisions (Resale)","130232080","31/10/2018","Catering","Civic Centre Catering","R4102"
"Wolverhampton City Council","http://opendatacommunities.org/id/metropolitan-district-council/wolverhampton","702071","Brakes/Brakefresh","9269482992","803.59","Provisions (Resale)","130229368","03/10/2018","Catering","Civic Centre Catering","R4102"
"Wolverhampton City Council","http://opendatacommunities.org/id/metropolitan-district-council/wolverhampton","702071","Brakes/Brakefresh","9269350089","532.84","Provisions (Resale)","130223540","05/10/2018","Catering","Civic Centre Catering","R4102"
"Wolverhampton City Council","http://opendatacommunities.org/id/metropolitan-district-council/wolverhampton","702071","Brakes/Brakefresh","9269506969","115.66","Provisions (Resale)","130231083","17/10/2018","Catering","Civic Centre Catering","R4102"
"Wolverhampton City Council","http://opendatacommunities.org/id/metropolitan-district-council/wolverhampton","702072","Brand Creative Media Limited","1225","120.00","Marketing \ Non-staff advertising","130227539","03/10/2018","Director of Education","SENDIASS","R4317"
"Wolverhampton City Council","http://opendatacommunities.org/id/metropolitan-district-council/wolverhampton","702072","Brand Creative Media Limited","1238","194.00","Marketing \ Non-staff advertising","130229779","24/10/2018","Director of Education","SENDIASS","R4317"
"Wolverhampton City Council","http://opendatacommunities.org/id/metropolitan-district-council/wolverhampton","702072","Brand Creative Media Limited","1239","80.00","Marketing \ Non-staff advertising","130229971","24/10/2018","Director of Education","SENDIASS","R4317"
"Wolverhampton City Council","http://opendatacommunities.org/id/metropolitan-district-council/wolverhampton","702072","Brand Creative Media Limited","1239","275.00","Marketing \ Non-staff advertising","130229971","24/10/2018","Director of Education","SENDIASS","R4317"
"Wolverhampton City Council","http://opendatacommunities.org/id/metropolitan-district-council/wolverhampton","702072","Brand Creative Media Limited","1239","964.00","Marketing \ Non-staff advertising","130229971","24/10/2018","Director of Education","SENDIASS","R4317"
"Wolverhampton City Council","http://opendatacommunities.org/id/metropolitan-district-council/wolverhampton","702072","Brand Creative Media Limited","1239","964.00","Marketing \ Non-staff advertising","130229971","24/10/2018","Director of Education","SENDIASS","R4317"
"Wolverhampton City Council","http://opendatacommunities.org/id/metropolitan-district-council/wolverhampton","702093","Briggs Equiptment UK Limited","107201456","413.33","Hire of Vehicles","130229372","17/10/2018","Markets","Wholesale Market Facilities Management","R3200"
"Wolverhampton City Council","http://opendatacommunities.org/id/metropolitan-district-council/wolverhampton","702100","Bristol City Council","8005852676","1,722.00","Materials","130229374","12/10/2018","Environmental Maintenance","Ground Maintenance East","R4007"
"Wolverhampton City Council","http://opendatacommunities.org/id/metropolitan-district-council/wolverhampton","702100","Bristol City Council","8005852667","13,623.23","Materials","130229373","12/10/2018","Environmental Maintenance","Ground Maintenance East","R4007"
"Wolverhampton City Council","http://opendatacommunities.org/id/metropolitan-district-council/wolverhampton","702104","Bristow & Sutor","198234","50.00","Bailiff Action","130231372","12/10/2018","Parking Services","Parking Enforcement","R9382"
"Wolverhampton City Council","http://opendatacommunities.org/id/metropolitan-district-council/wolverhampton","702126","BT (Phone Bills)","CM59966476 Q107UL","119.06","Fixtures and Fittings - R&M","190515069","10/10/2018","Facilities Management","Caretakers Community Centre","R2502"
"Wolverhampton City Council","http://opendatacommunities.org/id/metropolitan-district-council/wolverhampton","702126","BT (Phone Bills)","CM59355938 Q1185F","100.38","Fixtures and Fittings - R&M","190515744","12/10/2018","Maintenance Programme","Centralised R&M","R2502"
"Wolverhampton City Council","http://opendatacommunities.org/id/metropolitan-district-council/wolverhampton","702126","BT (Phone Bills)","CM64920663 Q041NF(1)","40.00","Fixtures and Fittings - R&M","190517399","17/10/2018","Facilities Management","Bilston Town Hall","R2502"
"Wolverhampton City Council","http://opendatacommunities.org/id/metropolitan-district-council/wolverhampton","702126","BT (Phone Bills)","CM64920663 Q041NF","95.70","Fixtures and Fittings - R&M","190517398","17/10/2018","Facilities Management","Bilston Town Hall","R2502"
"Wolverhampton City Council","http://opendatacommunities.org/id/metropolitan-district-council/wolverhampton","702126","BT (Phone Bills)","Q239","89.95","Services - Assistive technology","190515021","10/10/2018","Adults Assessment & Care Management North","CSDP","R4407"
"Wolverhampton City Council","http://opendatacommunities.org/id/metropolitan-district-council/wolverhampton","702126","BT (Phone Bills)","VP25404570M09201KM","26.98","Comms - Telephone Call charges","130231982","19/10/2018","Visitor Economy","Makers Dozen","R4505"
"Wolverhampton City Council","http://opendatacommunities.org/id/metropolitan-district-council/wolverhampton","702126","BT (Phone Bills)","VP25404570M09201KM","13.49","Comms - Telephone Call charges","130231982","19/10/2018","Visitor Economy","Art Gallery","R4505"
"Wolverhampton City Council","http://opendatacommunities.org/id/metropolitan-district-council/wolverhampton","702126","BT (Phone Bills)","CM60453647 F098ZK","987.16","Fixtures and Fittings - R&M","190516041","12/10/2018","Facilities Management","Management of Vacant Properties","R2502"
"Wolverhampton City Council","http://opendatacommunities.org/id/metropolitan-district-council/wolverhampton","702126","BT (Phone Bills)","Q238","185.70","Services - Assistive technology","190515020","10/10/2018","Adults Assessment & Care Management North","CSDP","R4407"
"Wolverhampton City Council","http://opendatacommunities.org/id/metropolitan-district-council/wolverhampton","702126","BT (Phone Bills)","Q237","471.80","Services - Assistive technology","190515023","10/10/2018","Adults Assessment & Care Management North","CSDP","R4407"
"Wolverhampton City Council","http://opendatacommunities.org/id/metropolitan-district-council/wolverhampton","702126","BT (Phone Bills)","VP 03799470 Q036","2,613.64","Computing - Internet","190518061","19/10/2018","ICTS","Strategic ICTS (ICT Service Budget)","R4537"
"Wolverhampton City Council","http://opendatacommunities.org/id/metropolitan-district-council/wolverhampton","702126","BT (Phone Bills)","A176104","500.00","Services - Fees and Charges","130231565","31/10/2018","Housing","Wholly Owned Company - Operations","R4401"
"Wolverhampton City Council","http://opendatacommunities.org/id/metropolitan-district-council/wolverhampton","702126","BT (Phone Bills)","CM63816541 Q0507T","112.43","Fixtures and Fittings - R&M","190517397","17/10/2018","Facilities Management","Caretakers Community Centre","R2502"
"Wolverhampton City Council","http://opendatacommunities.org/id/metropolitan-district-council/wolverhampton","702126","BT (Phone Bills)","CM68451735 M038IY","131.93","Fixtures and Fittings - R&M","190512894","03/10/2018","Facilities Management","Victoria Square, Block 11","R2502"
"Wolverhampton City Council","http://opendatacommunities.org/id/metropolitan-district-council/wolverhampton","702126","BT (Phone Bills)","Q240","471.80","Services - Assistive technology","190515022","10/10/2018","Adults Assessment & Care Management North","CSDP","R4407"
"Wolverhampton City Council","http://opendatacommunities.org/id/metropolitan-district-council/wolverhampton","702126","BT (Phone Bills)","CM 6470 4458 - Q043 &8","94.40","Comms - Telephone Call charges","190512316","03/10/2018","Parking Services","Car Parks Operational Staff","R4505"
"Wolverhampton City Council","http://opendatacommunities.org/id/metropolitan-district-council/wolverhampton","702131","British Telecommunications-Openreach","A172273","7,202.10","Construction and Conversion","130229624","05/10/2018","","Bilston Urban Village","C1100"
"Wolverhampton City Council","http://opendatacommunities.org/id/metropolitan-district-council/wolverhampton","702157","Browne Jacobson Llp","My ref: EL150024/ER6 Your ref: 262807","1,444.60","Insurance - General","190513128","03/10/2018","Audit Services","Legal Liability","R4962"
"Wolverhampton City Council","http://opendatacommunities.org/id/metropolitan-district-council/wolverhampton","702157","Browne Jacobson Llp","TP9715/LG 400772","561.00","Insurance - General","190515051","10/10/2018","Audit Services","Legal Liability","R4962"
"Wolverhampton City Council","http://opendatacommunities.org/id/metropolitan-district-council/wolverhampton","702157","Browne Jacobson Llp","399717","725.00","Insurance - General","130231566","24/10/2018","Audit Services","Legal Liability","R4962"
"Wolverhampton City Council","http://opendatacommunities.org/id/metropolitan-district-council/wolverhampton","702157","Browne Jacobson Llp","TP9778/LG 400911","5,533.50","Insurance - General","190513982","05/10/2018","Audit Services","Legal Liability","R4962"
"Wolverhampton City Council","http://opendatacommunities.org/id/metropolitan-district-council/wolverhampton","702157","Browne Jacobson Llp","TP140182/LG 400909","214.50","Insurance - General","190515049","10/10/2018","Audit Services","Legal Liability","R4962"
"Wolverhampton City Council","http://opendatacommunities.org/id/metropolitan-district-council/wolverhampton","702157","Browne Jacobson Llp","TP9978/LG  399078","938.50","Insurance - General","190515048","10/10/2018","Audit Services","Legal Liability","R4962"
"Wolverhampton City Council","http://opendatacommunities.org/id/metropolitan-district-council/wolverhampton","702157","Browne Jacobson Llp","TP160145/LG 400910","445.50","Insurance - General","190513983","05/10/2018","Audit Services","Legal Liability","R4962"
"Wolverhampton City Council","http://opendatacommunities.org/id/metropolitan-district-council/wolverhampton","702157","Browne Jacobson Llp","TP120141/LG 400564","552.00","Insurance - General","190515050","10/10/2018","Audit Services","Legal Liability","R4962"
"Wolverhampton City Council","http://opendatacommunities.org/id/metropolitan-district-council/wolverhampton","702157","Browne Jacobson Llp","400992","213.50","Services - Professional Fees","130232215","26/10/2018","Waste and Recycling Service","Waste Collection and Recycling Service - General","R4400"
"Wolverhampton City Council","http://opendatacommunities.org/id/metropolitan-district-council/wolverhampton","702157","Browne Jacobson Llp","EL10072/SC3/400613","793.00","Insurance - General","190521063","24/10/2018","Audit Services","Legal Liability","R4962"
"Wolverhampton City Council","http://opendatacommunities.org/id/metropolitan-district-council/wolverhampton","702158","Browne Jacobson Llp","387607","414.00","Insurance - General","130220349","03/10/2018","Audit Services","Legal Liability","R4962"
"Wolverhampton City Council","http://opendatacommunities.org/id/metropolitan-district-council/wolverhampton","702158","Browne Jacobson Llp","387607","138.00","Insurance - General","130220349","03/10/2018","Audit Services","Legal Liability","R4962"
"Wolverhampton City Council","http://opendatacommunities.org/id/metropolitan-district-council/wolverhampton","702160","Broxap Limited","INV234648","594.00","Equipment - Purchase","130227696","03/10/2018","Environmental Maintenance","Parks - East Area Management","R4000"
"Wolverhampton City Council","http://opendatacommunities.org/id/metropolitan-district-council/wolverhampton","702160","Broxap Limited","INV234648","594.00","Equipment - Purchase","130227696","03/10/2018","Environmental Maintenance","Parks - South West Area Management","R4000"
"Wolverhampton City Council","http://opendatacommunities.org/id/metropolitan-district-council/wolverhampton","702160","Broxap Limited","INV234648","35.00","Equipment - Purchase","130227696","03/10/2018","Environmental Maintenance","Parks - East Area Management","R4000"
"Wolverhampton City Council","http://opendatacommunities.org/id/metropolitan-district-council/wolverhampton","702160","Broxap Limited","INV234648","35.00","Equipment - Purchase","130227696","03/10/2018","Environmental Maintenance","Parks - South West Area Management","R4000"
"Wolverhampton City Council","http://opendatacommunities.org/id/metropolitan-district-council/wolverhampton","702164","Bruton Knowles","BHM-19-23268","5,000.00","Services - Consultants","130232545","24/10/2018","Housing","Wholly Owned Company - Operations","R4404"
"Wolverhampton City Council","http://opendatacommunities.org/id/metropolitan-district-council/wolverhampton","702164","Bruton Knowles","BHM-19-23434","1,550.00","Services - Professional Fees","130230822","10/10/2018","Estates and Valuations","Estates and Valuations Team","R4400"
"Wolverhampton City Council","http://opendatacommunities.org/id/metropolitan-district-council/wolverhampton","702164","Bruton Knowles","BHM-19-23265","4,200.00","Services - Professional Fees","130228663","10/10/2018","Estates and Valuations","Estates and Valuations Team","R4400"
"Wolverhampton City Council","http://opendatacommunities.org/id/metropolitan-district-council/wolverhampton","702164","Bruton Knowles","BHM-19-23429","4,500.00","Services - Professional Fees","130231085","12/10/2018","Estates and Valuations","Estates and Valuations Team","R4400"
"Wolverhampton City Council","http://opendatacommunities.org/id/metropolitan-district-council/wolverhampton","702164","Bruton Knowles","BHM-19-23366","4,050.54","Services - Professional Fees","130229469","03/10/2018","Estates and Valuations","Estates and Valuations Team","R4400"
"Wolverhampton City Council","http://opendatacommunities.org/id/metropolitan-district-council/wolverhampton","702164","Bruton Knowles","BHM-19-23406","31,320.00","Services - Professional Fees","130230359","17/10/2018","Corporate Asset Management","Energy Management","R4400"
"Wolverhampton City Council","http://opendatacommunities.org/id/metropolitan-district-council/wolverhampton","702164","Bruton Knowles","BHM-19-23405","42,639.48","Services - Professional Fees","130230358","10/10/2018","Corporate Asset Management","Energy Management","R4400"
"Wolverhampton City Council","http://opendatacommunities.org/id/metropolitan-district-council/wolverhampton","702164","Bruton Knowles","BHM-19-23433","2,000.00","Services - Professional Fees","130230821","12/10/2018","Housing Revenue Account","Hostels / Outreach","R4400"
"Wolverhampton City Council","http://opendatacommunities.org/id/metropolitan-district-council/wolverhampton","702164","Bruton Knowles","BHM-19-23369","2,533.65","Services - Professional Fees","130229470","03/10/2018","Estates and Valuations","Estates and Valuations Team","R4400"
"Wolverhampton City Council","http://opendatacommunities.org/id/metropolitan-district-council/wolverhampton","702172","BT Global","485407","10,255.00","Equipment - Hire","130229784","17/10/2018","Operation & Maintenance of Existing Network","Walsall Recovery Costs","R4001"
"Wolverhampton City Council","http://opendatacommunities.org/id/metropolitan-district-council/wolverhampton","702172","BT Global","485580","18,620.25","Equipment - Hire","130231407","19/10/2018","Operation & Maintenance of Existing Network","UTC Dudley","R4001"
"Wolverhampton City Council","http://opendatacommunities.org/id/metropolitan-district-council/wolverhampton","702172","BT Global","485768","21,627.94","Equipment - Hire","130231410","24/10/2018","Operation & Maintenance of Existing Network","Walsall Recovery Costs","R4001"
"Wolverhampton City Council","http://opendatacommunities.org/id/metropolitan-district-council/wolverhampton","702172","BT Global","485368","39,244.00","Equipment - Hire","130229783","17/10/2018","Operation & Maintenance of Existing Network","UTC Dudley","R4001"
"Wolverhampton City Council","http://opendatacommunities.org/id/metropolitan-district-council/wolverhampton","702172","BT Global","485529","2,482.00","Plant, Equipment, Machinery & Computer Hardware","130229786","19/10/2018","","Integrated Transport","C3000"
"Wolverhampton City Council","http://opendatacommunities.org/id/metropolitan-district-council/wolverhampton","702172","BT Global","485646","10,851.98","Equipment - Hire","130231408","24/10/2018","Operation & Maintenance of Existing Network","UTC - Sandwell MBC","R4001"
"Wolverhampton City Council","http://opendatacommunities.org/id/metropolitan-district-council/wolverhampton","702172","BT Global","485485","5,840.49","Equipment - Hire","130229785","31/10/2018","Operation & Maintenance of Existing Network","UTC Dudley","R4001"
"Wolverhampton City Council","http://opendatacommunities.org/id/metropolitan-district-council/wolverhampton","702172","BT Global","485790","30,735.59","Equipment - Hire","130231411","24/10/2018","Operation & Maintenance of Existing Network","UTC Wolverhampton","R4001"
"Wolverhampton City Council","http://opendatacommunities.org/id/metropolitan-district-council/wolverhampton","702172","BT Global","485713","8,915.95","Equipment - Hire","130231409","24/10/2018","Operation & Maintenance of Existing Network","UTC - Solihull MBC","R4001"
"Wolverhampton City Council","http://opendatacommunities.org/id/metropolitan-district-council/wolverhampton","702179","Bulk Minerals Limited","002479","201.57","Materials","130224551","17/10/2018","Highways Maintenance","Planned Highways Maintenance","R4007"
"Wolverhampton City Council","http://opendatacommunities.org/id/metropolitan-district-council/wolverhampton","702179","Bulk Minerals Limited","002379","161.02","Materials","130220625","17/10/2018","Highways Maintenance","Planned Highways Maintenance","R4007"
"Wolverhampton City Council","http://opendatacommunities.org/id/metropolitan-district-council/wolverhampton","702181","United Living","CSIN000634","716,287.00","Construction and Conversion","130231683","17/10/2018","","Decent Homes - Stock Improvements","C1100"
"Wolverhampton City Council","http://opendatacommunities.org/id/metropolitan-district-council/wolverhampton","702181","United Living","CSIN000633","299,451.00","Construction and Conversion","130231682","17/10/2018","","Decent Homes - Stock Improvements","C1100"
"Wolverhampton City Council","http://opendatacommunities.org/id/metropolitan-district-council/wolverhampton","702181","United Living","CSIN000635","65,296.00","Construction and Conversion","130231684","17/10/2018","","Structural works","C1100"
"Wolverhampton City Council","http://opendatacommunities.org/id/metropolitan-district-council/wolverhampton","702181","United Living","CSIN000636","297,315.00","Construction and Conversion","130231685","17/10/2018","","Refurbishment of Voids","C1100"
"Wolverhampton City Council","http://opendatacommunities.org/id/metropolitan-district-council/wolverhampton","702181","United Living","CSIN000637","62,064.00","R&M - Departmental planned (external)","130231686","17/10/2018","Housing Revenue Account","Amounts to be Settled with Wolverhampton Homes","R2001"
"Wolverhampton City Council","http://opendatacommunities.org/id/metropolitan-district-council/wolverhampton","702210","Accord Housing (Bushbury Triangle)","CB69720-1","3,146.46","Rent","130232546","31/10/2018","Mental Health Assesment & Care Management","Mental Health Assessment & Care Management","R2200"
"Wolverhampton City Council","http://opendatacommunities.org/id/metropolitan-district-council/wolverhampton","702231","Bytes Software Services Limited","527432","1,042.74","Computing - Purchase of Software","130229375","17/10/2018","ICTS","Strategic ICTS (ICT Service Budget)","R4531"
"Wolverhampton City Council","http://opendatacommunities.org/id/metropolitan-district-council/wolverhampton","702231","Bytes Software Services Limited","529251","130.96","Computing - Purchase of Software","130230980","31/10/2018","Child Protection","Childrens with Disabilities Team","R4531"
"Wolverhampton City Council","http://opendatacommunities.org/id/metropolitan-district-council/wolverhampton","702231","Bytes Software Services Limited","527433","1,390.32","Computing - Purchase of Software","130229376","17/10/2018","ICTS","Strategic ICTS (ICT Service Budget)","R4531"
"Wolverhampton City Council","http://opendatacommunities.org/id/metropolitan-district-council/wolverhampton","702231","Bytes Software Services Limited","527011","1,789.56","Computing - Licences","130229006","12/10/2018","ICTS","Strategic ICTS (ICT Service Budget)","R4535"
"Wolverhampton City Council","http://opendatacommunities.org/id/metropolitan-district-council/wolverhampton","702253","C P Davidson & Sons Limited","35062966","0.36","Services - Professional Fees","190518368","19/10/2018","Fleet Services","Fleet Management","R4400"
"Wolverhampton City Council","http://opendatacommunities.org/id/metropolitan-district-council/wolverhampton","702253","C P Davidson & Sons Limited","35062966","210.00","Services - Professional Fees","190518368","19/10/2018","Fleet Services","Fleet Management","R4400"
"Wolverhampton City Council","http://opendatacommunities.org/id/metropolitan-district-council/wolverhampton","702253","C P Davidson & Sons Limited","35062966","10.00","Services - Professional Fees","190518368","19/10/2018","Fleet Services","Fleet Management","R4400"
"Wolverhampton City Council","http://opendatacommunities.org/id/metropolitan-district-council/wolverhampton","702253","C P Davidson & Sons Limited","35062966","97.90","Services - Professional Fees","190518368","19/10/2018","Fleet Services","Fleet Management","R4400"
"Wolverhampton City Council","http://opendatacommunities.org/id/metropolitan-district-council/wolverhampton","702253","C P Davidson & Sons Limited","35062966","70.00","Services - Professional Fees","190518368","19/10/2018","Fleet Services","Fleet Management","R4400"
"Wolverhampton City Council","http://opendatacommunities.org/id/metropolitan-district-council/wolverhampton","702302","Canon (UK) Limited","9234410","1,113.59","Printing","130231412","31/10/2018","Planning","Planning","R4300"
"Wolverhampton City Council","http://opendatacommunities.org/id/metropolitan-district-council/wolverhampton","702306","Capita Business Serv Limited","6003824266","742.50","Services - General Licences","130230823","24/10/2018","School Planning & Resources","Education Data Services","R4402"
"Wolverhampton City Council","http://opendatacommunities.org/id/metropolitan-district-council/wolverhampton","702306","Capita Business Serv Limited","6003800353","50.00","Subscriptions","130233134","31/10/2018","The Hub","Payroll/HR","R4701"
"Wolverhampton City Council","http://opendatacommunities.org/id/metropolitan-district-council/wolverhampton","702310","Capita Resourcing Limited (Crvs)","R0056793","234.00","Computing - Licences","130230156","24/10/2018","The Hub","Criminal Convictions Checking","R4535"
"Wolverhampton City Council","http://opendatacommunities.org/id/metropolitan-district-council/wolverhampton","702334","HAS Technology Limited","337487","6,493.05","Computing - Maint Agreements","130230363","10/10/2018","Strategic Commissioning","Head of Strategic Commissioning","R4534"
"Wolverhampton City Council","http://opendatacommunities.org/id/metropolitan-district-council/wolverhampton","702356","Caritas Recruitment Limited","3087195","1,140.00","Agency Staff","130227784","03/10/2018","Child Protection","MASH","R1100"
"Wolverhampton City Council","http://opendatacommunities.org/id/metropolitan-district-council/wolverhampton","702372","C�Art Art Transport Limited","117091","645.00","Services - Professional Fees","130229625","19/10/2018","Public Service Reform","Mayoral Expenses","R4400"
"Wolverhampton City Council","http://opendatacommunities.org/id/metropolitan-district-council/wolverhampton","702372","C�Art Art Transport Limited","117091","98.00","Services - Professional Fees","130229625","19/10/2018","Public Service Reform","Mayoral Expenses","R4400"
"Wolverhampton City Council","http://opendatacommunities.org/id/metropolitan-district-council/wolverhampton","702372","C�Art Art Transport Limited","117091","80.00","Services - Professional Fees","130229625","19/10/2018","Public Service Reform","Mayoral Expenses","R4400"
"Wolverhampton City Council","http://opendatacommunities.org/id/metropolitan-district-council/wolverhampton","702380","Carver (Wolverhampton) Limited","PSINV01001637936","685.69","Materials","130231086","17/10/2018","Maintenance Programme","Civic Centre Repairs & Maintenance","R4007"
"Wolverhampton City Council","http://opendatacommunities.org/id/metropolitan-district-council/wolverhampton","702380","Carver (Wolverhampton) Limited","PSINV01001619832","133.32","R&M - Departmental planned (external)","130231665","17/10/2018","Schools","Woodthorne Primary School","R2001"
"Wolverhampton City Council","http://opendatacommunities.org/id/metropolitan-district-council/wolverhampton","702382","Carwood Motor Units Limited","1231157","500.00","Services - Professional Fees","190514916","10/10/2018","Fleet Services","Fleet Management","R4400"
"Wolverhampton City Council","http://opendatacommunities.org/id/metropolitan-district-council/wolverhampton","702382","Carwood Motor Units Limited","1230396","779.71","Services - Professional Fees","190513864","05/10/2018","Fleet Services","Fleet Management","R4400"
"Wolverhampton City Council","http://opendatacommunities.org/id/metropolitan-district-council/wolverhampton","702382","Carwood Motor Units Limited","1231753","250.00","Services - Professional Fees","190514917","10/10/2018","Fleet Services","Fleet Management","R4400"
"Wolverhampton City Council","http://opendatacommunities.org/id/metropolitan-district-council/wolverhampton","702382","Carwood Motor Units Limited","1231754","232.47","Services - Professional Fees","190514918","10/10/2018","Fleet Services","Fleet Management","R4400"
"Wolverhampton City Council","http://opendatacommunities.org/id/metropolitan-district-council/wolverhampton","702382","Carwood Motor Units Limited","1234166","600.00","Services - Professional Fees","190516169","12/10/2018","Fleet Services","Fleet Management","R4400"
"Wolverhampton City Council","http://opendatacommunities.org/id/metropolitan-district-council/wolverhampton","702382","Carwood Motor Units Limited","1232581","225.00","Services - Professional Fees","190514919","10/10/2018","Fleet Services","Fleet Management","R4400"
"Wolverhampton City Council","http://opendatacommunities.org/id/metropolitan-district-council/wolverhampton","702391","Castlecroft Medical Practice","M2018Q215SHCIFRQ","405.00","TPP - Public Health Contracts","190522017","26/10/2018","Starting and Developing Well","Sexual Health","R5060"
"Wolverhampton City Council","http://opendatacommunities.org/id/metropolitan-district-council/wolverhampton","702391","Castlecroft Medical Practice","M2018Q215SHIUDFQ","700.00","TPP - Public Health Contracts","190522019","26/10/2018","Starting and Developing Well","Sexual Health","R5060"
"Wolverhampton City Council","http://opendatacommunities.org/id/metropolitan-district-council/wolverhampton","702391","Castlecroft Medical Practice","FOS4129","48.72","Services - Professional Fees","190512853","03/10/2018","Looked After Children","Fostering Team & Allowances","R4400"
"Wolverhampton City Council","http://opendatacommunities.org/id/metropolitan-district-council/wolverhampton","702391","Castlecroft Medical Practice","M2018Q215SHIUFRQ","75.00","TPP - Public Health Contracts","190522020","26/10/2018","Starting and Developing Well","Sexual Health","R5060"
"Wolverhampton City Council","http://opendatacommunities.org/id/metropolitan-district-council/wolverhampton","702391","Castlecroft Medical Practice","M2018Q215SHCIFIQ","400.00","TPP - Public Health Contracts","190522016","26/10/2018","Starting and Developing Well","Sexual Health","R5060"
"Wolverhampton City Council","http://opendatacommunities.org/id/metropolitan-district-council/wolverhampton","702391","Castlecroft Medical Practice","M2018Q2.15SHIUDRQ","75.00","TPP - Public Health Contracts","190522021","26/10/2018","Starting and Developing Well","Sexual Health","R5060"
"Wolverhampton City Council","http://opendatacommunities.org/id/metropolitan-district-council/wolverhampton","702391","Castlecroft Medical Practice","M2018Q215SHCIFBQ","560.00","TPP - Public Health Contracts","190522018","26/10/2018","Starting and Developing Well","Sexual Health","R5060"
"Wolverhampton City Council","http://opendatacommunities.org/id/metropolitan-district-council/wolverhampton","702391","Castlecroft Medical Practice","M2018Q2.15SHIURFQ","300.00","TPP - Public Health Contracts","190522022","26/10/2018","Starting and Developing Well","Sexual Health","R5060"
"Wolverhampton City Council","http://opendatacommunities.org/id/metropolitan-district-council/wolverhampton","702396","Cater Walsh Reporting Ltd","109825","22.56","Services - Professional Fees","130231247","24/10/2018","Legal Services","Centralised External Legal Costs","R4400"
"Wolverhampton City Council","http://opendatacommunities.org/id/metropolitan-district-council/wolverhampton","702413","CBRE Limited","50BR100053395","1,042.50","Services - Consultants","130229788","17/10/2018","Housing Revenue Account","HRA General","R4404"
"Wolverhampton City Council","http://opendatacommunities.org/id/metropolitan-district-council/wolverhampton","702413","CBRE Limited","50BR100053397","3,682.50","Services - Consultants","130230981","24/10/2018","Housing Revenue Account","HRA General","R4404"
"Wolverhampton City Council","http://opendatacommunities.org/id/metropolitan-district-council/wolverhampton","702413","CBRE Limited","50BR100053970","980.00","Services - Professional Fees","130232964","31/10/2018","Housing","Wholly Owned Company - Operations","R4400"
"Wolverhampton City Council","http://opendatacommunities.org/id/metropolitan-district-council/wolverhampton","702413","CBRE Limited","50BR100053191","747.50","Services - Consultants","130229787","17/10/2018","Housing Revenue Account","HRA General","R4404"
"Wolverhampton City Council","http://opendatacommunities.org/id/metropolitan-district-council/wolverhampton","702413","CBRE Limited","50BR100053409","3,811.25","Services - Consultants","130230982","17/10/2018","Housing Revenue Account","HRA General","R4404"
"Wolverhampton City Council","http://opendatacommunities.org/id/metropolitan-district-council/wolverhampton","702418","Ccs Media Limited","3264458","597.90","Intangible Assets / Computer Software","130231414","12/10/2018","","ICT General Programme","C4005"
"Wolverhampton City Council","http://opendatacommunities.org/id/metropolitan-district-council/wolverhampton","702450","GO Carz","13199","647.50","Client Transport","130231417","26/10/2018","Special Educational Needs","Secondary- Transport","R3042"
"Wolverhampton City Council","http://opendatacommunities.org/id/metropolitan-district-council/wolverhampton","702450","GO Carz","13186","293.52","Client Transport","130231851","26/10/2018","Child Protection","Childrens with Disabilities Team","R3042"
"Wolverhampton City Council","http://opendatacommunities.org/id/metropolitan-district-council/wolverhampton","702450","GO Carz","13559","200.00","Client Transport","130231987","26/10/2018","Special Educational Needs","Secondary- Transport","R3042"
"Wolverhampton City Council","http://opendatacommunities.org/id/metropolitan-district-council/wolverhampton","702450","GO Carz","13201","2,311.54","Client Transport","130231986","26/10/2018","Special Educational Needs","Special - Transport","R3042"
"Wolverhampton City Council","http://opendatacommunities.org/id/metropolitan-district-council/wolverhampton","702450","GO Carz","13161","830.76","Section 17","130231850","26/10/2018","Child Protection","CIN/CP Social Work Unit - Area 4","R6403"
"Wolverhampton City Council","http://opendatacommunities.org/id/metropolitan-district-council/wolverhampton","702450","GO Carz","13564","1,254.00","Client Transport","130232317","26/10/2018","Looked After Children","Looked After Team 1","R3042"
"Wolverhampton City Council","http://opendatacommunities.org/id/metropolitan-district-council/wolverhampton","702450","GO Carz","13195","1,452.00","Client Transport","130231415","26/10/2018","Special Educational Needs","Primary - Transport","R3042"
"Wolverhampton City Council","http://opendatacommunities.org/id/metropolitan-district-council/wolverhampton","702450","GO Carz","13196","1,600.00","Client Transport","130231416","26/10/2018","Special Educational Needs","Special - Transport","R3042"
"Wolverhampton City Council","http://opendatacommunities.org/id/metropolitan-district-council/wolverhampton","702450","GO Carz","13560","1,397.24","Client Transport","130231988","26/10/2018","Special Educational Needs","Special - Transport","R3042"
"Wolverhampton City Council","http://opendatacommunities.org/id/metropolitan-district-council/wolverhampton","702450","GO Carz","13341","665.00","Client Transport","130231419","26/10/2018","Special Educational Needs","Special - Transport","R3042"
"Wolverhampton City Council","http://opendatacommunities.org/id/metropolitan-district-council/wolverhampton","702450","GO Carz","13204","1,290.00","Client Transport","130231418","26/10/2018","Special Educational Needs","Primary - Transport","R3042"
"Wolverhampton City Council","http://opendatacommunities.org/id/metropolitan-district-council/wolverhampton","702450","GO Carz","13192","823.00","Client Transport","130231984","26/10/2018","Special Educational Needs","Primary - Transport","R3042"
"Wolverhampton City Council","http://opendatacommunities.org/id/metropolitan-district-council/wolverhampton","702450","GO Carz","12099","248.64","Client Transport","130231983","19/10/2018","Specialist Support","Alternative Provision","R3042"
"Wolverhampton City Council","http://opendatacommunities.org/id/metropolitan-district-council/wolverhampton","702450","GO Carz","13561","1,529.64","Client Transport","130231420","26/10/2018","Special Educational Needs","Secondary- Transport","R3042"
"Wolverhampton City Council","http://opendatacommunities.org/id/metropolitan-district-council/wolverhampton","702450","GO Carz","13094","57.00","Client Transport","130230826","26/10/2018","Emergency Duty Team","Emergency Duty Team","R3042"
"Wolverhampton City Council","http://opendatacommunities.org/id/metropolitan-district-council/wolverhampton","702450","GO Carz","13193","750.00","Client Transport","130231985","26/10/2018","Special Educational Needs","Primary - Transport","R3042"
"Wolverhampton City Council","http://opendatacommunities.org/id/metropolitan-district-council/wolverhampton","702452","Central Workwear","4441","407.70","Laundry Expenses","130229790","24/10/2018","Public Service Reform","Mayoral Expenses","R4202"
"Wolverhampton City Council","http://opendatacommunities.org/id/metropolitan-district-council/wolverhampton","702452","Central Workwear","4452","1,749.55","Laundry Expenses","130229972","24/10/2018","Catering","Education Catering - General Overheads","R4202"
"Wolverhampton City Council","http://opendatacommunities.org/id/metropolitan-district-council/wolverhampton","702452","Central Workwear","4417","205.45","Laundry Expenses","130229627","24/10/2018","Visitor Economy","Art Gallery","R4202"
"Wolverhampton City Council","http://opendatacommunities.org/id/metropolitan-district-council/wolverhampton","702453","Central Youth Theatre","HSABNOV18","750.00","Services - Professional Fees","130233054","31/10/2018","Headstart","Headstart - Young People Engagement","R4400"
"Wolverhampton City Council","http://opendatacommunities.org/id/metropolitan-district-council/wolverhampton","702480","Chaplins Limited","C4477/A","200.00","TPP - Payments to voluntary groups","130231687","31/10/2018","Local Economy","Blakenhall Community & Healthy Living Centre","R5200"
"Wolverhampton City Council","http://opendatacommunities.org/id/metropolitan-district-council/wolverhampton","702497","Charterhouse Voice & Data PLC","T632754","282.92","Comms - Telephone Call charges","130228260","10/10/2018","ICTS","Strategic ICTS (ICT Service Budget)","R4505"
"Wolverhampton City Council","http://opendatacommunities.org/id/metropolitan-district-council/wolverhampton","702530","Chipside Limited","S190005","160.00","Computing - Purchase of Hardware","130229258","03/10/2018","Parking Services","Parking Enforcement","R4530"
"Wolverhampton City Council","http://opendatacommunities.org/id/metropolitan-district-council/wolverhampton","702530","Chipside Limited","S183107","466.60","Computing - Purchase of Hardware","130229257","03/10/2018","Parking Services","Parking Enforcement","R4530"
"Wolverhampton City Council","http://opendatacommunities.org/id/metropolitan-district-council/wolverhampton","702530","Chipside Limited","S182724","160.00","Computing - Purchase of Hardware","130228807","03/10/2018","Parking Services","Parking Enforcement","R4530"
"Wolverhampton City Council","http://opendatacommunities.org/id/metropolitan-district-council/wolverhampton","702543","Chubb Fire & Security Limited","7020054","40.00","Services - Security","130225126","03/10/2018","Maintenance Programme","Centralised R&M","R4405"
"Wolverhampton City Council","http://opendatacommunities.org/id/metropolitan-district-council/wolverhampton","702543","Chubb Fire & Security Limited","6803160","405.26","Services - Security","130231421","17/10/2018","Maintenance Programme","Centralised R&M","R4405"
"Wolverhampton City Council","http://opendatacommunities.org/id/metropolitan-district-council/wolverhampton","702543","Chubb Fire & Security Limited","7112577","1,353.62","Services - Security","130226426","10/10/2018","Schools","Pupil Referral Units - Orchard Centre","R4405"
"Wolverhampton City Council","http://opendatacommunities.org/id/metropolitan-district-council/wolverhampton","702543","Chubb Fire & Security Limited","7141482","1,535.22","Services - Security","130229009","03/10/2018","Maintenance Programme","Centralised R&M","R4405"
"Wolverhampton City Council","http://opendatacommunities.org/id/metropolitan-district-council/wolverhampton","702543","Chubb Fire & Security Limited","7103219","159.22","Services - Security","130226088","03/10/2018","Maintenance Programme","Centralised R&M","R4405"
"Wolverhampton City Council","http://opendatacommunities.org/id/metropolitan-district-council/wolverhampton","702543","Chubb Fire & Security Limited","7105267","272.21","Services - Security","130226241","03/10/2018","Bereavement Services","Cemeteries","R4405"
"Wolverhampton City Council","http://opendatacommunities.org/id/metropolitan-district-council/wolverhampton","702543","Chubb Fire & Security Limited","7122301","137.51","Services - Security","130228529","03/10/2018","Maintenance Programme","Centralised R&M","R4405"
"Wolverhampton City Council","http://opendatacommunities.org/id/metropolitan-district-council/wolverhampton","702543","Chubb Fire & Security Limited","7147001","1,188.26","Services - Security","130231422","12/10/2018","Maintenance Programme","Centralised R&M","R4405"
"Wolverhampton City Council","http://opendatacommunities.org/id/metropolitan-district-council/wolverhampton","702558","Cipfa Business Limited","3130397","1,000.00","Services - Professional Fees","130228809","19/10/2018","Public Service Reform","Information Governance","R4400"
"Wolverhampton City Council","http://opendatacommunities.org/id/metropolitan-district-council/wolverhampton","702572","City Demolition Birmingham Limited","3170","6,084.00","Services - Consultants","130232318","26/10/2018","Planning","Building Consultancy","R4404"
"Wolverhampton City Council","http://opendatacommunities.org/id/metropolitan-district-council/wolverhampton","702572","City Demolition Birmingham Limited","3165","87,999.64","Construction and Conversion","130231087","12/10/2018","","GF - Disposals Programme (Non-Strategic)","C1100"
"Wolverhampton City Council","http://opendatacommunities.org/id/metropolitan-district-council/wolverhampton","702572","City Demolition Birmingham Limited","3162","47,375.00","Services - Professional Fees","130230983","12/10/2018","Corporate Asset Management","Strategic Asset Management Team","R4400"
"Wolverhampton City Council","http://opendatacommunities.org/id/metropolitan-district-council/wolverhampton","702572","City Demolition Birmingham Limited","3153","51,699.49","Services - Professional Fees","130229628","03/10/2018","Corporate Asset Management","Strategic Asset Management Team","R4400"
"Wolverhampton City Council","http://opendatacommunities.org/id/metropolitan-district-council/wolverhampton","702604","Cleapss","SUBS008451","3,803.94","Subscriptions","130231248","24/10/2018","Audit Services","Health & Safety","R4701"
"Wolverhampton City Council","http://opendatacommunities.org/id/metropolitan-district-council/wolverhampton","702643","Cobalt Telephone Technologies Limited","C180911","14,456.91","Services - Bank Charges","130230364","10/10/2018","Central Corporate Budgets","Corporate Management (Bank Charges)","R4403"
"Wolverhampton City Council","http://opendatacommunities.org/id/metropolitan-district-council/wolverhampton","702653","Codsall Middle School","STN071","2,190.00","TPP - Alternative Provision of Education","130230365","10/10/2018","Special Educational Needs","SEN Education OOC","R5037"
"Wolverhampton City Council","http://opendatacommunities.org/id/metropolitan-district-council/wolverhampton","702658","Coin-A-Drink Limited","929732","125.01","Catering","130231990","24/10/2018","Early Intervention","EIP Locality 1 - Eastfields","R4100"
"Wolverhampton City Council","http://opendatacommunities.org/id/metropolitan-district-council/wolverhampton","702683","Commercial Body Fittings Limited","0000896818M","71.57","Equipment - Purchase","190514910","10/10/2018","Fleet Services","Fleet Management","R4000"
"Wolverhampton City Council","http://opendatacommunities.org/id/metropolitan-district-council/wolverhampton","702683","Commercial Body Fittings Limited","0000893326M","42.06","Equipment - Purchase","190511799","03/10/2018","Fleet Services","Fleet Management","R4000"
"Wolverhampton City Council","http://opendatacommunities.org/id/metropolitan-district-council/wolverhampton","702684","Commercial Collectn Serv/Ccs Collect","99177","2.00","Services - Professional Fees","130229259","03/10/2018","Revenues & Benefits","Debt Management","R4400"
"Wolverhampton City Council","http://opendatacommunities.org/id/metropolitan-district-council/wolverhampton","702685","Digraph Transport Supplies Ltd","BRIV073876","136.42","Equipment - Purchase","190521642","26/10/2018","Fleet Services","Fleet Management","R4000"
"Wolverhampton City Council","http://opendatacommunities.org/id/metropolitan-district-council/wolverhampton","702690","Communication Plus (Faircom Plus)","15085","95.00","Services - Translation fees","130230157","24/10/2018","Adult Education","Communication Studies","R4406"
"Wolverhampton City Council","http://opendatacommunities.org/id/metropolitan-district-council/wolverhampton","702690","Communication Plus (Faircom Plus)","15049","85.00","Services - Translation fees","130228811","12/10/2018","Adult Education","Service Wide","R4406"
"Wolverhampton City Council","http://opendatacommunities.org/id/metropolitan-district-council/wolverhampton","702697","Community Transport","19783","2,086.20","Client Transport","130231854","19/10/2018","Special Educational Needs","Special - Transport","R3042"
"Wolverhampton City Council","http://opendatacommunities.org/id/metropolitan-district-council/wolverhampton","702697","Community Transport","19782","2,239.65","Client Transport","130231853","19/10/2018","Special Educational Needs","Special - Transport","R3042"
"Wolverhampton City Council","http://opendatacommunities.org/id/metropolitan-district-council/wolverhampton","702717","Computershare Vouchers(Ex Busy Bees)","S-0002782363","924.21","Service Charges","130231249","24/10/2018","The Hub","Busy Bees Childcare Vouchers","R2205"
"Wolverhampton City Council","http://opendatacommunities.org/id/metropolitan-district-council/wolverhampton","702717","Computershare Vouchers(Ex Busy Bees)","S-0002766563","904.63","Service Charges","130230367","05/10/2018","The Hub","Busy Bees Childcare Vouchers","R2205"
"Wolverhampton City Council","http://opendatacommunities.org/id/metropolitan-district-council/wolverhampton","702723","Concept Elevators (UK) Ltd","NV151774","72.00","R&M - Departmental planned (external)","130229629","03/10/2018","Maintenance Programme","Centralised R&M","R2001"
"Wolverhampton City Council","http://opendatacommunities.org/id/metropolitan-district-council/wolverhampton","702723","Concept Elevators (UK) Ltd","NV152729","678.50","R&M - Departmental planned (external)","130231252","17/10/2018","Adult Education","Old Hall Street Main","R2001"
"Wolverhampton City Council","http://opendatacommunities.org/id/metropolitan-district-council/wolverhampton","702723","Concept Elevators (UK) Ltd","NV152198","99.00","R&M - Departmental planned (external)","130230584","17/10/2018","Maintenance Programme","Centralised R&M","R2001"
"Wolverhampton City Council","http://opendatacommunities.org/id/metropolitan-district-council/wolverhampton","702723","Concept Elevators (UK) Ltd","NV152867","72.00","R&M - Departmental planned (external)","130231991","24/10/2018","Maintenance Programme","Centralised R&M","R2001"
"Wolverhampton City Council","http://opendatacommunities.org/id/metropolitan-district-council/wolverhampton","702723","Concept Elevators (UK) Ltd","NV151812","99.00","R&M - Departmental planned (external)","130229630","03/10/2018","Maintenance Programme","Centralised R&M","R2001"
"Wolverhampton City Council","http://opendatacommunities.org/id/metropolitan-district-council/wolverhampton","702723","Concept Elevators (UK) Ltd","NV152822","1,150.00","R&M - Departmental planned (external)","130231424","17/10/2018","Maintenance Programme","Centralised R&M","R2001"
"Wolverhampton City Council","http://opendatacommunities.org/id/metropolitan-district-council/wolverhampton","702723","Concept Elevators (UK) Ltd","NV152640","63.00","R&M - Departmental planned (external)","130231250","17/10/2018","Maintenance Programme","Centralised R&M","R2001"
"Wolverhampton City Council","http://opendatacommunities.org/id/metropolitan-district-council/wolverhampton","702723","Concept Elevators (UK) Ltd","NV152007","90.00","R&M - Departmental planned (external)","130230583","10/10/2018","Maintenance Programme","Centralised R&M","R2001"
"Wolverhampton City Council","http://opendatacommunities.org/id/metropolitan-district-council/wolverhampton","702723","Concept Elevators (UK) Ltd","NV151826","99.00","R&M - Departmental planned (external)","130229791","03/10/2018","Maintenance Programme","Centralised R&M","R2001"
"Wolverhampton City Council","http://opendatacommunities.org/id/metropolitan-district-council/wolverhampton","702723","Concept Elevators (UK) Ltd","NV152783","2,647.00","R&M - Departmental planned (external)","130231253","17/10/2018","Maintenance Programme","Centralised R&M","R2001"
"Wolverhampton City Council","http://opendatacommunities.org/id/metropolitan-district-council/wolverhampton","702723","Concept Elevators (UK) Ltd","NV151753","1,150.00","R&M - Departmental planned (external)","130229185","10/10/2018","Maintenance Programme","Centralised R&M","R2001"
"Wolverhampton City Council","http://opendatacommunities.org/id/metropolitan-district-council/wolverhampton","702723","Concept Elevators (UK) Ltd","NV152712","790.00","R&M - Departmental planned (external)","130231251","19/10/2018","Maintenance Programme","Centralised R&M","R2001"
"Wolverhampton City Council","http://opendatacommunities.org/id/metropolitan-district-council/wolverhampton","702723","Concept Elevators (UK) Ltd","NV151895","200.00","R&M - Departmental planned (external)","130229631","03/10/2018","Maintenance Programme","Centralised R&M","R2001"
"Wolverhampton City Council","http://opendatacommunities.org/id/metropolitan-district-council/wolverhampton","702723","Concept Elevators (UK) Ltd","NV152005","108.00","R&M - Departmental planned (external)","130230582","17/10/2018","Maintenance Programme","Centralised R&M","R2001"
"Wolverhampton City Council","http://opendatacommunities.org/id/metropolitan-district-council/wolverhampton","702738","Connevans Limited","IN405369","1,316.75","Services - Assistive technology","130230158","10/10/2018","Special Educational Needs","SEN Sensory Inclusion","R4407"
"Wolverhampton City Council","http://opendatacommunities.org/id/metropolitan-district-council/wolverhampton","702741","MIR Sheward Musical Instrument repairs","2253","280.00","Services - Professional Fees","130229633","03/10/2018","School Planning & Resources","Music Support Team","R4400"
"Wolverhampton City Council","http://opendatacommunities.org/id/metropolitan-district-council/wolverhampton","702741","MIR Sheward Musical Instrument repairs","2257","810.00","Services - Professional Fees","130232084","19/10/2018","School Planning & Resources","Music Support Team","R4400"
"Wolverhampton City Council","http://opendatacommunities.org/id/metropolitan-district-council/wolverhampton","702766","Cooper Mobile Services Ltd","13360","3,000.00","Hire of Vehicles","130230161","24/10/2018","Waste and Recycling Service","Waste Collection and Recycling Service - General","R3200"
"Wolverhampton City Council","http://opendatacommunities.org/id/metropolitan-district-council/wolverhampton","702766","Cooper Mobile Services Ltd","13384","126.75","Hire of Vehicles","130230585","24/10/2018","Waste and Recycling Service","Waste Collection and Recycling Service - General","R3200"
"Wolverhampton City Council","http://opendatacommunities.org/id/metropolitan-district-council/wolverhampton","702766","Cooper Mobile Services Ltd","13359","3,000.00","Hire of Vehicles","130230160","24/10/2018","Waste and Recycling Service","Waste Collection and Recycling Service - General","R3200"
"Wolverhampton City Council","http://opendatacommunities.org/id/metropolitan-district-council/wolverhampton","702766","Cooper Mobile Services Ltd","13361","1,720.00","Hire of Vehicles","130229973","24/10/2018","Waste and Recycling Service","Waste Collection and Recycling Service - General","R3200"
"Wolverhampton City Council","http://opendatacommunities.org/id/metropolitan-district-council/wolverhampton","702766","Cooper Mobile Services Ltd","41916","222.00","Insurance - General","130230162","26/10/2018","Older People Provider Services","ILS Stores","R4962"
"Wolverhampton City Council","http://opendatacommunities.org/id/metropolitan-district-council/wolverhampton","702766","Cooper Mobile Services Ltd","13358","3,000.00","Hire of Vehicles","130230159","24/10/2018","Waste and Recycling Service","Waste Collection and Recycling Service - General","R3200"
"Wolverhampton City Council","http://opendatacommunities.org/id/metropolitan-district-council/wolverhampton","702774","Core Assets Childrens Services","144663","762.00","TPP - Social Care Support Services","130230368","05/10/2018","Looked After Children","Fostering Team & Allowances","R5501"
"Wolverhampton City Council","http://opendatacommunities.org/id/metropolitan-district-council/wolverhampton","702774","Core Assets Childrens Services","145059","1,000.00","TPP - Social Care Support Services","130231688","19/10/2018","Looked After Children","Fostering Team & Allowances","R5501"
"Wolverhampton City Council","http://opendatacommunities.org/id/metropolitan-district-council/wolverhampton","702786","Costa Ltd","A-PSI2726786","25.00","Provisions (Resale)","130227787","03/10/2018","Catering","Civic Centre Catering","R4102"
"Wolverhampton City Council","http://opendatacommunities.org/id/metropolitan-district-council/wolverhampton","702786","Costa Ltd","A-PSI2726316","505.28","Provisions (Resale)","130227786","03/10/2018","Leisure Services","WV Active Catering","R4102"
"Wolverhampton City Council","http://opendatacommunities.org/id/metropolitan-district-council/wolverhampton","702786","Costa Ltd","A-PSI2766413","147.23","Provisions (Resale)","130232742","26/10/2018","Leisure Services","WV Active Catering - Central","R4102"
"Wolverhampton City Council","http://opendatacommunities.org/id/metropolitan-district-council/wolverhampton","702786","Costa Ltd","A-PSI2766413","182.82","Provisions (Resale)","130232742","26/10/2018","Leisure Services","WV Active Catering - Central","R4102"
"Wolverhampton City Council","http://opendatacommunities.org/id/metropolitan-district-council/wolverhampton","702786","Costa Ltd","A-PSI2751823","535.44","Provisions (Resale)","130229260","17/10/2018","Leisure Services","Bert Williams Leisure Centre Caf�","R4102"
"Wolverhampton City Council","http://opendatacommunities.org/id/metropolitan-district-council/wolverhampton","702786","Costa Ltd","A-PSI2722215","55.00","Marketing \ Non-staff advertising","130227550","03/10/2018","Catering","Civic Centre Catering","R4317"
"Wolverhampton City Council","http://opendatacommunities.org/id/metropolitan-district-council/wolverhampton","702786","Costa Ltd","A-PSI2722141","35.00","Provisions (Resale)","130227549","03/10/2018","Catering","Civic Centre Catering","R4102"
"Wolverhampton City Council","http://opendatacommunities.org/id/metropolitan-district-council/wolverhampton","702786","Costa Ltd","A-PSI2724477","35.00","Provisions (Resale)","130227700","03/10/2018","Catering","Civic Centre Catering","R4102"
"Wolverhampton City Council","http://opendatacommunities.org/id/metropolitan-district-council/wolverhampton","702786","Costa Ltd","A-PSI2730398","215.97","Provisions (Resale)","130227920","03/10/2018","Leisure Services","Bert Williams Leisure Centre Caf�","R4102"
"Wolverhampton City Council","http://opendatacommunities.org/id/metropolitan-district-council/wolverhampton","702786","Costa Ltd","A-PSI2730398","232.66","Provisions (Resale)","130227920","03/10/2018","Leisure Services","Bert Williams Leisure Centre Caf�","R4102"
"Wolverhampton City Council","http://opendatacommunities.org/id/metropolitan-district-council/wolverhampton","702786","Costa Ltd","A-PSI2739010","300.60","Provisions (Resale)","130228443","10/10/2018","Leisure Services","WV Active Catering","R4102"
"Wolverhampton City Council","http://opendatacommunities.org/id/metropolitan-district-council/wolverhampton","702786","Costa Ltd","A-PSI2739010","516.43","Provisions (Resale)","130228443","10/10/2018","Leisure Services","WV Active Catering","R4102"
"Wolverhampton City Council","http://opendatacommunities.org/id/metropolitan-district-council/wolverhampton","702786","Costa Ltd","A-PSI2777061","121.61","Provisions (Resale)","130232320","31/10/2018","Leisure Services","WV Active Catering","R4102"
"Wolverhampton City Council","http://opendatacommunities.org/id/metropolitan-district-council/wolverhampton","702786","Costa Ltd","A-PSI2777061","212.05","Provisions (Resale)","130232320","31/10/2018","Leisure Services","WV Active Catering","R4102"
"Wolverhampton City Council","http://opendatacommunities.org/id/metropolitan-district-council/wolverhampton","702786","Costa Ltd","A-PSI2747892","1,670.07","Provisions (Resale)","130229015","12/10/2018","Catering","Civic Centre Catering","R4102"
"Wolverhampton City Council","http://opendatacommunities.org/id/metropolitan-district-council/wolverhampton","702786","Costa Ltd","A-PSI2722378","25.00","Provisions (Resale)","130227551","03/10/2018","Catering","Civic Centre Catering","R4102"
"Wolverhampton City Council","http://opendatacommunities.org/id/metropolitan-district-council/wolverhampton","702786","Costa Ltd","A-PSI2755756","213.11","Provisions (Resale)","130232319","26/10/2018","Leisure Services","WV Active Catering - Central","R4102"
"Wolverhampton City Council","http://opendatacommunities.org/id/metropolitan-district-council/wolverhampton","702786","Costa Ltd","A-PSI2755756","250.61","Provisions (Resale)","130232319","26/10/2018","Leisure Services","WV Active Catering - Central","R4102"
"Wolverhampton City Council","http://opendatacommunities.org/id/metropolitan-district-council/wolverhampton","702796","Cougar Monitoring Limited","111180","4,800.00","Services - Security","130230586","12/10/2018","Estates and Valuations","Industrial Premises ; Fordhouse Road","R4405"
"Wolverhampton City Council","http://opendatacommunities.org/id/metropolitan-district-council/wolverhampton","702796","Cougar Monitoring Limited","111182","7,200.00","Services - Security","130230588","10/10/2018","Facilities Management","Hickman Avenue Depot","R4405"
"Wolverhampton City Council","http://opendatacommunities.org/id/metropolitan-district-council/wolverhampton","702796","Cougar Monitoring Limited","111181","7,200.00","Services - Security","130230587","10/10/2018","Facilities Management","Culwell Street Depot","R4405"
"Wolverhampton City Council","http://opendatacommunities.org/id/metropolitan-district-council/wolverhampton","702805","Countrywide Mobility Services Limited","H-29113","1,915.00","Equipment - Purchase","130230828","10/10/2018","Older People Provider Services","ILS Stores","R4000"
"Wolverhampton City Council","http://opendatacommunities.org/id/metropolitan-district-council/wolverhampton","702808","Court Catering Equipment Limited","25538","1,339.64","Equipment - Purchase","130229634","19/10/2018","Catering","Education Catering - General Overheads","R4000"
"Wolverhampton City Council","http://opendatacommunities.org/id/metropolitan-district-council/wolverhampton","702821","Cpl Petroleum","1439141","21,655.99","Inventories","190523478","31/10/2018","","General Fund Balance Sheet","B3000"
"Wolverhampton City Council","http://opendatacommunities.org/id/metropolitan-district-council/wolverhampton","702821","Cpl Petroleum","1336935","21,155.89","Inventories","190516196","12/10/2018","","General Fund Balance Sheet","B3000"
"Wolverhampton City Council","http://opendatacommunities.org/id/metropolitan-district-council/wolverhampton","702821","Cpl Petroleum","1282013","1,189.20","Inventories","190511805","03/10/2018","","General Fund Balance Sheet","B3000"
"Wolverhampton City Council","http://opendatacommunities.org/id/metropolitan-district-council/wolverhampton","702821","Cpl Petroleum","1398954","1,270.20","Inventories","190518840","24/10/2018","","General Fund Balance Sheet","B3000"
"Wolverhampton City Council","http://opendatacommunities.org/id/metropolitan-district-council/wolverhampton","702821","Cpl Petroleum","1439156","21,604.11","Inventories","190523479","31/10/2018","","General Fund Balance Sheet","B3000"
"Wolverhampton City Council","http://opendatacommunities.org/id/metropolitan-district-council/wolverhampton","702821","Cpl Petroleum","1282022","21,170.81","Inventories","190511806","03/10/2018","","General Fund Balance Sheet","B3000"
"Wolverhampton City Council","http://opendatacommunities.org/id/metropolitan-district-council/wolverhampton","702821","Cpl Petroleum","1386439","22,014.33","Inventories","190518838","24/10/2018","","General Fund Balance Sheet","B3000"
"Wolverhampton City Council","http://opendatacommunities.org/id/metropolitan-district-council/wolverhampton","702821","Cpl Petroleum","1282012","21,132.73","Inventories","190511804","03/10/2018","","General Fund Balance Sheet","B3000"
"Wolverhampton City Council","http://opendatacommunities.org/id/metropolitan-district-council/wolverhampton","702821","Cpl Petroleum","1386475","21,976.98","Inventories","190518839","24/10/2018","","General Fund Balance Sheet","B3000"
"Wolverhampton City Council","http://opendatacommunities.org/id/metropolitan-district-council/wolverhampton","702863","Credential Environmental Limited","017854","96.00","TPP - Waste Disposal","130230590","26/10/2018","Environmental Maintenance","Ground Maintenance East","R5003"
"Wolverhampton City Council","http://opendatacommunities.org/id/metropolitan-district-council/wolverhampton","702863","Credential Environmental Limited","017853","98.00","TPP - Waste Disposal","130230589","26/10/2018","Environmental Maintenance","Ground Maintenance East","R5003"
"Wolverhampton City Council","http://opendatacommunities.org/id/metropolitan-district-council/wolverhampton","702863","Credential Environmental Limited","017856","15.60","TPP - Waste Disposal","130230592","26/10/2018","Environmental Maintenance","Ground Maintenance East","R5003"
"Wolverhampton City Council","http://opendatacommunities.org/id/metropolitan-district-council/wolverhampton","702863","Credential Environmental Limited","017855","74.00","TPP - Waste Disposal","130230591","26/10/2018","Environmental Maintenance","Ground Maintenance East","R5003"
"Wolverhampton City Council","http://opendatacommunities.org/id/metropolitan-district-council/wolverhampton","702865","Crelling Harnesses For Disabled Limited","144922","417.50","Equipment - Purchase","130229975","03/10/2018","Special Educational Needs","Special - Transport","R4000"
"Wolverhampton City Council","http://opendatacommunities.org/id/metropolitan-district-council/wolverhampton","702903","CTT (Wolverhampton) Limited","16059","1,856.91","Client Transport","130230593","05/10/2018","Special Educational Needs","Special - Transport","R3042"
"Wolverhampton City Council","http://opendatacommunities.org/id/metropolitan-district-council/wolverhampton","702903","CTT (Wolverhampton) Limited","16061","1,900.00","Client Transport","130231427","12/10/2018","Special Educational Needs","Special - Transport","R3042"
"Wolverhampton City Council","http://opendatacommunities.org/id/metropolitan-district-council/wolverhampton","702903","CTT (Wolverhampton) Limited","16060","1,900.00","Client Transport","130230594","05/10/2018","Special Educational Needs","Special - Transport","R3042"
